{"text_format":"1","workbook":"xlsx","n_sheets":8,"sheets":["IMPORTANT - PLEASE READ FIRST","Results Framework","Results Tracker - Current","Results Tracker - Previous","NewRows","Results Tracker - Template","Troubleshooting","NEW TAB"],"not_rendered":{"charts":0,"images":3,"macros":1,"external_links":1,"defined_names":107,"comments":1,"pivot_tables":0},"unopened":[],"bounds":{"document_bytes":16777216,"sheet_cells":100000,"rows_first":2000,"rows_last":500,"rows_between":2000,"halvings":0,"cell_chars":16384,"cell_head_chars":4096},"cells_cut":0,"cells_raw":0,"read":"whole","date_system":"1900"}

{"sheet":"IMPORTANT - PLEASE READ FIRST","index":0,"n_rows":38,"n_cols":2,"rows_kept":38,"cut":false,"hidden":false,"merged":[[17,2,17,76],[21,2,21,44],[12,2,12,76],[13,2,13,76],[14,2,14,76],[15,2,15,76],[16,2,16,76],[10,2,10,76],[11,2,11,76],[21,45,21,47],[20,2,20,76],[0,1,0,19],[0,40,0,58],[0,60,0,77],[1,1,2,77],[3,1,3,77],[5,2,5,76],[6,2,6,76],[7,2,7,76],[8,2,8,76],[9,2,9,75],[19,2,19,76],[18,2,18,76]]}
[]
[]
[]
[]
[]
[]
[]
[]
[]
[]
[]
[]
[]
[]
[]
[]
[]
[]
[]
[]
[]
[]
[]
[]
[]
[]
[]
[]
[]
[]
[]
[]
[]
[]
[]
[]
[]
[null,"Last updated 10/5/2015"]

{"sheet":"Results Framework","index":1,"n_rows":127,"n_cols":88,"rows_kept":127,"cut":false,"hidden":false,"merged":[[115,3,115,24],[115,28,115,49],[115,53,115,75],[116,2,116,18],[116,19,116,25],[116,27,116,43],[116,44,116,50],[116,52,116,69],[116,70,116,76],[113,2,113,25],[113,27,113,50],[113,52,113,76],[114,2,114,3],[114,4,114,8],[114,9,114,22],[114,23,114,25],[114,27,114,28],[114,29,114,33],[114,34,114,47],[114,48,114,50],[114,52,114,53],[114,54,114,58],[114,59,114,73],[114,74,114,76],[111,3,111,24],[111,28,111,49],[111,53,111,75],[112,2,112,18],[112,19,112,25],[112,27,112,43],[112,44,112,50],[112,52,112,69],[112,70,112,76],[109,2,109,25],[109,27,109,50],[109,52,109,76],[110,2,110,3],[110,4,110,8],[110,9,110,22],[110,23,110,25],[110,27,110,28],[110,29,110,33],[110,34,110,47],[110,48,110,50],[110,52,110,53],[110,54,110,58],[110,59,110,73],[110,74,110,76],[107,3,107,24],[107,28,107,49],[107,53,107,75],[108,2,108,18],[108,19,108,25],[108,27,108,43],[108,44,108,50],[108,52,108,69],[108,70,108,76],[105,2,105,25],[105,27,105,50],[105,52,105,76],[106,2,106,3],[106,4,106,8],[106,9,106,22],[106,23,106,25],[106,27,106,28],[106,29,106,33],[106,34,106,47],[106,48,106,50],[106,52,106,53],[106,54,106,58],[106,59,106,73],[106,74,106,76],[99,3,99,24],[99,28,99,49],[99,53,99,75],[100,2,100,18],[100,19,100,25],[100,27,100,43],[100,44,100,50],[100,52,100,69],[100,70,100,76],[97,2,97,25],[97,27,97,50],[97,52,97,76],[98,2,98,3],[98,4,98,8],[98,9,98,22],[98,23,98,25],[98,27,98,28],[98,29,98,33],[98,34,98,47],[98,48,98,50],[98,52,98,53],[98,54,98,58],[98,59,98,73],[98,74,98,76],[95,3,95,24],[95,28,95,49],[95,53,95,75],[96,2,96,18],[96,19,96,25],[96,27,96,43],[96,44,96,50],[96,52,96,69],[96,70,96,76],[93,2,93,25],[93,27,93,50],[93,52,93,76],[94,2,94,3],[94,4,94,8],[94,9,94,22],[94,23,94,25],[94,27,94,28],[94,29,94,33],[94,34,94,47],[94,48,94,50],[94,52,94,53],[94,54,94,58],[94,59,94,73],[94,74,94,76],[91,3,91,24],[91,28,91,49],[91,53,91,75],[92,2,92,18],[92,19,92,25],[92,27,92,43],[92,44,92,50],[92,52,92,69],[92,70,92,76],[89,2,89,25],[89,27,89,50],[89,52,89,76],[90,2,90,3],[90,4,90,8],[90,9,90,22],[90,23,90,25],[90,27,90,28],[90,29,90,33],[90,34,90,47],[90,48,90,50],[90,52,90,53],[90,54,90,58],[90,59,90,73],[90,74,90,76],[87,3,87,24],[87,28,87,49],[87,53,87,75],[88,2,88,18],[88,19,88,25],[88,27,88,43],[88,44,88,50],[88,52,88,69],[88,70,88,76],[85,2,85,25],[85,27,85,50],[85,52,85,76],[86,2,86,3],[86,4,86,8],[86,9,86,22],[86,23,86,25],[86,27,86,28],[86,29,86,33],[86,34,86,47],[86,48,86,50],[86,52,86,53],[86,54,86,58],[86,59,86,73],[86,74,86,76],[83,3,83,24],[83,28,83,49],[83,53,83,75],[84,2,84,18],[84,19,84,25],[84,27,84,43],[84,44,84,50],[84,52,84,69],[84,70,84,76],[81,2,81,25],[81,27,81,50],[81,52,81,76],[82,2,82,3],[82,4,82,8],[82,9,82,22],[82,23,82,25],[82,27,82,28],[82,29,82,33],[82,34,82,47],[82,48,82,50],[82,52,82,53],[82,54,82,58],[82,59,82,73],[82,74,82,76],[71,3,71,24],[71,28,71,49],[71,53,71,75],[72,2,72,18],[72,19,72,25],[72,27,72,43],[72,44,72,50],[72,52,72,69],[72,70,72,76],[69,2,69,25],[69,27,69,50],[69,52,69,76],[70,2,70,3],[70,4,70,8],[70,9,70,22],[70,23,70,25],[70,27,70,28],[70,29,70,33],[70,34,70,47],[70,48,70,50],[70,52,70,53],[70,54,70,58],[70,59,70,73],[70,74,70,76],[79,3,79,24],[79,28,79,49],[79,53,79,75],[80,2,80,18],[80,19,80,25],[80,27,80,43],[80,44,80,50],[80,52,80,69],[80,70,80,76],[67,3,67,24],[67,28,67,49],[67,53,67,75],[68,2,68,18],[68,19,68,25],[68,27,68,43],[68,44,68,50],[68,52,68,69],[68,70,68,76],[65,2,65,25],[65,27,65,50],[65,52,65,76],[66,2,66,3],[66,4,66,8],[66,9,66,22],[66,23,66,25],[66,27,66,28],[66,29,66,33],[66,34,66,47],[66,48,66,50],[66,52,66,53],[66,54,66,58],[66,59,66,73],[66,74,66,76],[63,3,63,24],[63,28,63,49],[63,53,63,75],[64,2,64,18],[64,19,64,25],[64,27,64,43],[64,44,64,50],[64,52,64,69],[64,70,64,76],[61,2,61,25],[61,27,61,50],[61,52,61,76],[62,2,62,3],[62,4,62,8],[62,9,62,22],[62,23,62,25],[62,27,62,28],[62,29,62,33],[62,34,62,47],[62,48,62,50],[62,52,62,53],[62,54,62,58],[62,59,62,73],[62,74,62,76],[59,3,59,24],[59,28,59,49],[59,53,59,75],[60,2,60,18],[60,19,60,25],[60,27,60,43],[60,44,60,50],[60,52,60,69],[60,70,60,76],[57,2,57,25],[57,27,57,50],[57,52,57,76],[58,2,58,3],[58,4,58,8],[58,9,58,22],[58,23,58,25],[58,27,58,28],[58,29,58,33],[58,34,58,47],[58,48,58,50],[58,52,58,53],[58,54,58,58],[58,59,58,73],[58,74,58,76],[55,3,55,24],[55,28,55,49],[55,53,55,75],[56,2,56,18],[56,19,56,25],[56,27,56,43],[56,44,56,50],[56,52,56,69],[56,70,56,76],[53,2,53,25],[53,27,53,50],[53,52,53,76],[54,2,54,3],[54,4,54,8],[54,9,54,22],[54,23,54,25],[54,27,54,28],[54,29,54,33],[54,34,54,47],[54,48,54,50],[54,52,54,53],[54,54,54,58],[54,59,54,73],[54,74,54,76],[51,3,51,24],[51,28,51,49],[51,53,51,75],[52,2,52,18],[52,19,52,25],[52,27,52,43],[52,44,52,50],[52,52,52,69],[52,70,52,76],[49,2,49,25],[49,27,49,50],[49,52,49,76],[50,2,50,3],[50,4,50,8],[50,9,50,22],[50,23,50,25],[50,27,50,28],[50,29,50,33],[50,34,50,47],[50,48,50,50],[50,52,50,53],[50,54,50,58],[50,59,50,73],[50,74,50,76],[102,54,102,58],[102,59,102,73],[102,74,102,76],[103,3,103,24],[103,28,103,49],[103,53,103,75],[104,2,104,18],[104,19,104,25],[104,27,104,43],[104,44,104,50],[104,52,104,69],[104,70,104,76],[102,2,102,3],[102,4,102,8],[102,9,102,22],[102,23,102,25],[102,27,102,28],[102,29,102,33],[102,34,102,47],[102,48,102,50],[102,52,102,53],[76,2,76,18],[76,19,76,25],[76,27,76,43],[76,44,76,50],[76,52,76,69],[76,70,76,76],[101,2,101,25],[101,27,101,50],[101,52,101,76],[77,2,77,25],[77,27,77,50],[77,52,77,76],[78,2,78,3],[78,4,78,8],[78,9,78,22],[78,23,78,25],[78,27,78,28],[78,29,78,33],[78,34,78,47],[78,48,78,50],[78,52,78,53],[78,54,78,58],[78,59,78,73],[78,74,78,76],[74,27,74,28],[74,29,74,33],[74,34,74,47],[74,48,74,50],[74,52,74,53],[74,54,74,58],[74,59,74,73],[74,74,74,76],[75,3,75,24],[75,28,75,49],[75,53,75,75],[48,19,48,25],[48,27,48,43],[48,44,48,50],[48,52,48,69],[32,1,32,77],[33,1,33,77],[34,1,34,77],[39,51,43,51],[41,27,41,50],[47,3,47,24],[47,28,47,49],[46,52,46,53],[43,27,43,50],[43,52,43,76],[46,29,46,33],[46,9,46,22],[35,77,118,77],[73,2,73,25],[73,27,73,50],[73,52,73,76],[74,2,74,3],[74,4,74,8],[74,9,74,22],[74,23,74,25],[21,1,31,1],[24,2,24,76],[28,2,28,76],[26,2,26,76],[27,40,27,76],[25,2,25,76],[0,41,0,58],[20,1,20,77],[15,17,15,39],[17,54,17,76],[31,2,31,38],[21,2,21,76],[29,2,29,76],[22,2,22,76],[23,2,23,76],[31,40,31,76],[21,77,31,77],[30,2,30,76],[0,21,0,39],[18,1,18,77],[15,2,15,15],[3,1,3,77],[0,60,0,77],[5,1,5,77],[125,1,125,6],[126,1,126,6],[48,70,48,76],[118,2,118,76],[124,1,124,77],[121,67,121,77],[119,1,119,77],[35,1,118,1],[117,2,117,25],[117,27,117,50],[47,53,47,75],[48,2,48,18],[117,52,117,76],[35,2,35,76],[46,34,46,47],[36,2,36,76],[46,59,46,73],[44,2,44,76],[46,48,46,50],[46,2,46,3],[46,4,46,8],[39,2,39,25],[41,2,41,25],[38,2,38,76],[8,1,8,77],[17,2,17,15],[17,17,17,39],[13,17,13,39],[13,54,13,76],[6,1,7,23],[6,24,7,27],[13,41,13,52],[9,2,9,13],[9,14,9,15],[11,2,11,13],[11,14,11,15],[9,17,9,76],[11,17,11,76],[1,1,2,77],[15,54,15,76],[0,1,0,19],[17,41,17,52],[15,41,15,52],[27,2,27,38],[46,74,46,76],[46,54,46,58],[46,23,46,25],[46,27,46,28],[37,2,37,76],[39,52,39,76],[45,2,45,25],[45,27,45,50],[45,52,45,76],[43,2,43,25],[40,2,40,25],[40,27,40,50],[40,52,40,76],[39,26,43,26],[41,52,41,76],[39,27,39,50],[13,2,13,15],[4,1,4,77]]}
[null,"Concept",null,null,null,null,null,null,null,null,null,null,null,null,null,null,null,null,null,null,null,"Pre-Proposal",null,null,null,null,null,null,null,null,null,null,null,null,null,null,null,null,null,null,null,"Investment Development",null,null,null,null,null,null,null,null,null,null,null,null,null,null,null,null,null,null,"Management & Close"]
[]
[]
[null,"Results Framework"]
[]
[null,"Use this form to capture a snapshot of the logical relationship between the expected results of this project (outcomes and outputs) and the foundation’s strategic goals to which those results contribute. It should also be used to identify the key outcomes and outputs that will be monitored or evaluated throughout the life of the project. The Results Framework will be developed collaboratively by you and your foundation program officer."]
[null,"Additional guidance for the tool can be found",null,null,null,null,null,null,null,null,null,null,null,null,null,null,null,null,null,null,null,null,null,null,"here."]
[]
[]
[null,null,"Investment Title",null,null,null,null,null,null,null,null,null,null,null,null,null,null,"Southern focused coalition in support of HIV combined prevention and differentiated care",null,null,null,null,null,null,null,null,null,null,null,null,null,null,null,null,null,null,null,null,null,null,null,null,null,null,null,null,null,null,null,null,null,null,null,null,null,null,null,null,null,null,null,null,null,null,null,null,null,null,null,null,null,null,null,null,null,null,null,null,null,null,null,null,null,null,null,{"$f":"R10","v":"Southern focused coalition in support of HIV combined prevention and differentiated care"}]
[]
[null,null,"Organization Legal Name",null,null,null,null,null,null,null,null,null,null,null,null,null,null,"AVAC",null,null,null,null,null,null,null,null,null,null,null,null,null,null,null,null,null,null,null,null,null,null,null,null,null,null,null,null,null,null,null,null,null,null,null,null,null,null,null,null,null,null,null,null,null,null,null,null,null,null,null,null,null,null,null,null,null,null,null,null,null,null,null,null,null,null,null,{"$f":"R12","v":"AVAC"}]
[]
[null,null,"Primary Contact",null,null,null,null,null,null,null,null,null,null,null,null,null,null,"Emily Bass",null,null,null,null,null,null,null,null,null,null,null,null,null,null,null,null,null,null,null,null,null,null,null,"Program Officer",null,null,null,null,null,null,null,null,null,null,null,null,"Lorna Tumwebaze",null,null,null,null,null,null,null,null,null,null,null,null,null,null,null,null,null,null,null,null,null,null,null,null,null,null,null,null,null,null,{"$f":"R14","v":"Emily Bass"}]
[]
[null,null,"Date Submitted",null,null,null,null,null,null,null,null,null,null,null,null,null,null,"2017-08-28",null,null,null,null,null,null,null,null,null,null,null,null,null,null,null,null,null,null,null,null,null,null,null,"Opportunity ID",null,null,null,null,null,null,null,null,null,null,null,null,"OPP1174438",null,null,null,null,null,null,null,null,null,null,null,null,null,null,null,null,null,null,null,null,null,null,null,null,null,null,null,null,null,null,null,{"$f":"R16","v":42975},{"$f":"BC16","v":"OPP1174438"}]
[]
[]
[]
[]
[]
[null,null,"1. Gates Foundation Strategic Goals"]
[]
[null,null,"This section is completed by the foundation. Do not edit."]
[]
[null,null,"1. Strategic Goals"]
[]
[null,null,"The following includes the 3-5 year strategic results of an initiative, sub-initiative or portfolio towards which the investment contributes most directly (identified in the foundation’s strategy scorecard):",null,null,null,null,null,null,null,null,null,null,null,null,null,null,null,null,null,null,null,null,null,null,null,null,null,null,null,null,null,null,null,null,null,null,null,null,null,"Gates Foundation staff to populate this with information from the Internal Concept Brief before sending to the prospective grantee/vendor",null,null,null,null,null,null,null,null,null,null,null,null,null,null,null,null,null,null,null,null,null,null,null,null,null,null,null,null,null,null,null,null,null,null,null,null,null,null,{"$f":"C28","v":"The following includes the 3-5 year strategic results of an initiative, sub-initiative or portfolio towards which the investment contributes most directly (identified in the foundation’s strategy scorecard):"},{"$f":"AO28","v":"Gates Foundation staff to populate this with information from the Internal Concept Brief before sending to the prospective grantee/vendor"}]
[]
[null,null,"2. Strategic Fit"]
[]
[null,null,"This investment contributes to the strategic goal as follows:",null,null,null,null,null,null,null,null,null,null,null,null,null,null,null,null,null,null,null,null,null,null,null,null,null,null,null,null,null,null,null,null,null,null,null,null,null,"Gates Foundation staff to populate this with information from the Internal Concept Brief before sending to the grantee/vendor. (Note: edits may need to be made to the strategic fit text from the Internal Concept Brief in order to provide the appropriate context for an external audience)",null,null,null,null,null,null,null,null,null,null,null,null,null,null,null,null,null,null,null,null,null,null,null,null,null,null,null,null,null,null,null,null,null,null,null,null,null,null,{"$f":"C32","v":"This investment contributes to the strategic goal as follows:"},{"$f":"AO32","v":"Gates Foundation staff to populate this with information from the Internal Concept Brief before sending to the grantee/vendor. (Note: edits may need to be made to the strategic fit text from the Internal Concept Brief in order to provide the appropriate context for an external audience)"}]
[]
[]
[]
[null,null,"2. Investment Results Framework"]
[]
[null,null,"Provide specific details on the outcomes this investment will achieve (including those that define what success is for the investment), and the key outputs that signal whether the investment is on track. See the ‘Before you Begin’ tab for  links to additional guidance on using the tool and a completed example Results Framework."]
[]
[null,null,"Investment:\nPrimary Outcome(s)",null,null,null,null,null,null,null,null,null,null,null,null,null,null,null,null,null,null,null,null,null,null,null,null,"Investment:\nIntermediate Outcome(s)",null,null,null,null,null,null,null,null,null,null,null,null,null,null,null,null,null,null,null,null,null,null,null,null,"Investment:\nOutput(s)"]
[]
[null,null,"The ultimate or overall change(s) in technologies, systems, populations or behaviors the investment seeks to achieve within the context of the investment timeframe; tells us what success looks like for the investment.",null,null,null,null,null,null,null,null,null,null,null,null,null,null,null,null,null,null,null,null,null,null,null,null,"Short- to medium-term changes in technologies, systems, populations or behaviors that need to be achieved to realize the primary outcome(s) the investment is working towards; may not  be needed for all investments.",null,null,null,null,null,null,null,null,null,null,null,null,null,null,null,null,null,null,null,null,null,null,null,null,"The goods, services, events, or deliverables produced during an investment."]
[]
[null,null,"Check ID Box if For Reporting",null,null,null,null,null,null,null,null,null,null,null,null,null,null,null,null,null,null,null,null,null,null,null,null,"Check ID Box if For Reporting",null,null,null,null,null,null,null,null,null,null,null,null,null,null,null,null,null,null,null,null,null,null,null,null,"Check ID Box if For Reporting"]
[]
[]
[null,null,"þ",null,{"$f":"IF(D48=\"\", INDIRECT(\"E\" & ROW()-4), INDIRECT(\"E\" & ROW()-4)+1)","v":1},null,null,null,null,null,null,null,null,null,null,null,null,null,null,null,null,null,null,"x",null,null,null,"þ",null,{"$f":"IF($E47 <> INDIRECT(\"$E\" & ROW() - 4), $E47&\".1\", IF($AC48=\"\", INDIRECT(\"$AD\" & ROW()-4), INDIRECT(\"$AD\" & ROW()-4)+0.1))","v":"1.1"},null,null,null,null,null,null,null,null,null,null,null,null,null,null,null,null,null,null,"x",null,null,null,"þ",null,{"$f":"IF($AD47 <> INDIRECT(\"$AD\" & ROW() - 4), $AD47 & \".1\", LEFT(INDIRECT(\"$BC\" & ROW()-4), FIND(\".\",INDIRECT(\"$BC\" & ROW()-4),FIND(\".\",INDIRECT(\"$BC\" & ROW()-4))+1)) & RIGHT(INDIRECT(\"$BC\" & ROW()-4), LEN(INDIRECT(\"$BC\" & ROW()-4))-FIND(\".\",INDIRECT(\"$BC\" & ROW()-4),FIND(\".\",INDIRECT(\"$BC\" & ROW()-4))+1))+1)","v":"1.1.1"},null,null,null,null,null,null,null,null,null,null,null,null,null,null,null,null,null,null,null,"x"]
[null,null,null,"Increaased adoption of policy and program approaches that strengthen combination preventoin, differentiated service delivery and other components of a sustainable, comprehensive and integrated HIV response in Malawi, Tanzania and Zimbabwe ",null,null,null,null,null,null,null,null,null,null,null,null,null,null,null,null,null,null,null,null,null,null,null,null,"Strengthened coalitions advocating for data-informed policy and program approaches to strengthen a comprehensive HIV response in Malawi, Tanzania and Zimbabw",null,null,null,null,null,null,null,null,null,null,null,null,null,null,null,null,null,null,null,null,null,null,null,null,"Coalitions focused on data informed advocacy for a comprehensive HIV response developed (Tanzania) and strengthened 9Malawi and Zimbabwe) ",null,null,null,null,null,null,null,null,null,null,null,null,null,null,null,null,null,null,null,null,null,null,null,null,null,null,null,{"$f":"D48","v":"Increaased adoption of policy and program approaches that strengthen combination preventoin, differentiated service delivery and other components of a sustainable, comprehensive and integrated HIV response in Malawi, Tanzania and Zimbabwe "},{"$f":"AC48","v":"Strengthened coalitions advocating for data-informed policy and program approaches to strengthen a comprehensive HIV response in Malawi, Tanzania and Zimbabw"},{"$f":"BB48","v":"Coalitions focused on data informed advocacy for a comprehensive HIV response developed (Tanzania) and strengthened 9Malawi and Zimbabwe) "},"placeholder"]
[null,null,null,null,null,null,null,null,null,null,null,null,null,null,null,null,null,null,null,"Add Another",null,null,null,null,null,null,null,null,null,null,null,null,null,null,null,null,null,null,null,null,null,null,null,null,"Add Another",null,null,null,null,null,null,null,null,null,null,null,null,null,null,null,null,null,null,null,null,null,null,null,null,null,"Add Another"]
[]
[null,null,"¨",null,{"$f":"IF(D52=\"\", INDIRECT(\"E\" & ROW()-4), INDIRECT(\"E\" & ROW()-4)+1)","v":1},null,null,null,null,null,null,null,null,null,null,null,null,null,null,null,null,null,null,"x",null,null,null,"¨",null,{"$f":"IF($E51<>INDIRECT(\"$E\"&ROW()-4),$E51&\".1\",IF($AC52=\"\",INDIRECT(\"$AD\"&ROW()-4),LEFT(INDIRECT(\"$E\"&ROW()))&\".\"&RIGHT(INDIRECT(\"$AD\"&ROW()-4),LEN(INDIRECT(\"$AD\"&ROW()-4))-FIND(\".\",INDIRECT(\"$AD\"&ROW()-4)))+1))","v":"1.1"},null,null,null,null,null,null,null,null,null,null,null,null,null,null,null,null,null,null,"x",null,null,null,"þ",null,{"$f":"IF($AD51 <> INDIRECT(\"$AD\" & ROW() - 4), $AD51 & \".1\", LEFT(INDIRECT(\"$BC\" & ROW()-4), FIND(\".\",INDIRECT(\"$BC\" & ROW()-4),FIND(\".\",INDIRECT(\"$BC\" & ROW()-4))+1)) & RIGHT(INDIRECT(\"$BC\" & ROW()-4), LEN(INDIRECT(\"$BC\" & ROW()-4))-FIND(\".\",INDIRECT(\"$BC\" & ROW()-4),FIND(\".\",INDIRECT(\"$BC\" & ROW()-4))+1))+1)","v":"1.1.2"},null,null,null,null,null,null,null,null,null,null,null,null,null,null,null,null,null,null,null,"x"]
[null,null,null,null,null,null,null,null,null,null,null,null,null,null,null,null,null,null,null,null,null,null,null,null,null,null,null,null,null,null,null,null,null,null,null,null,null,null,null,null,null,null,null,null,null,null,null,null,null,null,null,null,null,"A COMPASS Africa Coalition-wide strategic framework inclusive of operating principles/framework structure ",null,null,null,null,null,null,null,null,null,null,null,null,null,null,null,null,null,null,null,null,null,null,null,null,null,null,null,{"$f":"D52","v":0},{"$f":"AC52","v":0},{"$f":"BB52","v":"A COMPASS Africa Coalition-wide strategic framework inclusive of operating principles/framework structure "},"placeholder"]
[null,null,null,null,null,null,null,null,null,null,null,null,null,null,null,null,null,null,null,"Add Another",null,null,null,null,null,null,null,null,null,null,null,null,null,null,null,null,null,null,null,null,null,null,null,null,"Add Another",null,null,null,null,null,null,null,null,null,null,null,null,null,null,null,null,null,null,null,null,null,null,null,null,null,"Add Another"]
[]
[null,null,"¨",null,{"$f":"IF(D56=\"\", INDIRECT(\"E\" & ROW()-4), INDIRECT(\"E\" & ROW()-4)+1)","v":1},null,null,null,null,null,null,null,null,null,null,null,null,null,null,null,null,null,null,"x",null,null,null,"¨",null,{"$f":"IF($E55<>INDIRECT(\"$E\"&ROW()-4),$E55&\".1\",IF($AC56=\"\",INDIRECT(\"$AD\"&ROW()-4),LEFT(INDIRECT(\"$E\"&ROW()))&\".\"&RIGHT(INDIRECT(\"$AD\"&ROW()-4),LEN(INDIRECT(\"$AD\"&ROW()-4))-FIND(\".\",INDIRECT(\"$AD\"&ROW()-4)))+1))","v":"1.1"},null,null,null,null,null,null,null,null,null,null,null,null,null,null,null,null,null,null,"x",null,null,null,"þ",null,{"$f":"IF($AD55 <> INDIRECT(\"$AD\" & ROW() - 4), $AD55 & \".1\", LEFT(INDIRECT(\"$BC\" & ROW()-4), FIND(\".\",INDIRECT(\"$BC\" & ROW()-4),FIND(\".\",INDIRECT(\"$BC\" & ROW()-4))+1)) & RIGHT(INDIRECT(\"$BC\" & ROW()-4), LEN(INDIRECT(\"$BC\" & ROW()-4))-FIND(\".\",INDIRECT(\"$BC\" & ROW()-4),FIND(\".\",INDIRECT(\"$BC\" & ROW()-4))+1))+1)","v":"1.1.3"},null,null,null,null,null,null,null,null,null,null,null,null,null,null,null,null,null,null,null,"x"]
[null,null,null,null,null,null,null,null,null,null,null,null,null,null,null,null,null,null,null,null,null,null,null,null,null,null,null,null,null,null,null,null,null,null,null,null,null,null,null,null,null,null,null,null,null,null,null,null,null,null,null,null,null,"An Africa-based hub (PZAT, based in Zimbabwe) for MERL and administrative support for all COMPASS Africa activities regionally and internationally",null,null,null,null,null,null,null,null,null,null,null,null,null,null,null,null,null,null,null,null,null,null,null,null,null,null,null,{"$f":"D56","v":0},{"$f":"AC56","v":0},{"$f":"BB56","v":"An Africa-based hub (PZAT, based in Zimbabwe) for MERL and administrative support for all COMPASS Africa activities regionally and internationally"},"placeholder"]
[null,null,null,null,null,null,null,null,null,null,null,null,null,null,null,null,null,null,null,"Add Another",null,null,null,null,null,null,null,null,null,null,null,null,null,null,null,null,null,null,null,null,null,null,null,null,"Add Another",null,null,null,null,null,null,null,null,null,null,null,null,null,null,null,null,null,null,null,null,null,null,null,null,null,"Add Another"]
[]
[null,null,"¨",null,{"$f":"IF(D60=\"\", INDIRECT(\"E\" & ROW()-4), INDIRECT(\"E\" & ROW()-4)+1)","v":1},null,null,null,null,null,null,null,null,null,null,null,null,null,null,null,null,null,null,"x",null,null,null,"¨",null,{"$f":"IF($E59<>INDIRECT(\"$E\"&ROW()-4),$E59&\".1\",IF($AC60=\"\",INDIRECT(\"$AD\"&ROW()-4),LEFT(INDIRECT(\"$E\"&ROW()))&\".\"&RIGHT(INDIRECT(\"$AD\"&ROW()-4),LEN(INDIRECT(\"$AD\"&ROW()-4))-FIND(\".\",INDIRECT(\"$AD\"&ROW()-4)))+1))","v":"1.1"},null,null,null,null,null,null,null,null,null,null,null,null,null,null,null,null,null,null,"x",null,null,null,"þ",null,{"$f":"IF($AD59 <> INDIRECT(\"$AD\" & ROW() - 4), $AD59 & \".1\", LEFT(INDIRECT(\"$BC\" & ROW()-4), FIND(\".\",INDIRECT(\"$BC\" & ROW()-4),FIND(\".\",INDIRECT(\"$BC\" & ROW()-4))+1)) & RIGHT(INDIRECT(\"$BC\" & ROW()-4), LEN(INDIRECT(\"$BC\" & ROW()-4))-FIND(\".\",INDIRECT(\"$BC\" & ROW()-4),FIND(\".\",INDIRECT(\"$BC\" & ROW()-4))+1))+1)","v":"1.1.4"},null,null,null,null,null,null,null,null,null,null,null,null,null,null,null,null,null,null,null,"x"]
[null,null,null,null,null,null,null,null,null,null,null,null,null,null,null,null,null,null,null,null,null,null,null,null,null,null,null,null,null,null,null,null,null,null,null,null,null,null,null,null,null,null,null,null,null,null,null,null,null,null,null,null,null,"Three compehensive, adaptable country-level advocacy strategies inclusive of organizing principles, plans for \"quick wins\" and long-term campaigns, skills and tactical and content capacity goals",null,null,null,null,null,null,null,null,null,null,null,null,null,null,null,null,null,null,null,null,null,null,null,null,null,null,null,{"$f":"D60","v":0},{"$f":"AC60","v":0},{"$f":"BB60","v":"Three compehensive, adaptable country-level advocacy strategies inclusive of organizing principles, plans for \"quick wins\" and long-term campaigns, skills and tactical and content capacity goals"},"placeholder"]
[null,null,null,null,null,null,null,null,null,null,null,null,null,null,null,null,null,null,null,"Add Another",null,null,null,null,null,null,null,null,null,null,null,null,null,null,null,null,null,null,null,null,null,null,null,null,"Add Another",null,null,null,null,null,null,null,null,null,null,null,null,null,null,null,null,null,null,null,null,null,null,null,null,null,"Add Another"]
[]
[null,null,"¨",null,{"$f":"IF(D64=\"\", INDIRECT(\"E\" & ROW()-4), INDIRECT(\"E\" & ROW()-4)+1)","v":1},null,null,null,null,null,null,null,null,null,null,null,null,null,null,null,null,null,null,"x",null,null,null,"¨",null,{"$f":"IF($E63<>INDIRECT(\"$E\"&ROW()-4),$E63&\".1\",IF($AC64=\"\",INDIRECT(\"$AD\"&ROW()-4),LEFT(INDIRECT(\"$E\"&ROW()))&\".\"&RIGHT(INDIRECT(\"$AD\"&ROW()-4),LEN(INDIRECT(\"$AD\"&ROW()-4))-FIND(\".\",INDIRECT(\"$AD\"&ROW()-4)))+1))","v":"1.1"},null,null,null,null,null,null,null,null,null,null,null,null,null,null,null,null,null,null,"x",null,null,null,"þ",null,{"$f":"IF($AD63 <> INDIRECT(\"$AD\" & ROW() - 4), $AD63 & \".1\", LEFT(INDIRECT(\"$BC\" & ROW()-4), FIND(\".\",INDIRECT(\"$BC\" & ROW()-4),FIND(\".\",INDIRECT(\"$BC\" & ROW()-4))+1)) & RIGHT(INDIRECT(\"$BC\" & ROW()-4), LEN(INDIRECT(\"$BC\" & ROW()-4))-FIND(\".\",INDIRECT(\"$BC\" & ROW()-4),FIND(\".\",INDIRECT(\"$BC\" & ROW()-4))+1))+1)","v":"1.1.5"},null,null,null,null,null,null,null,null,null,null,null,null,null,null,null,null,null,null,null,"x"]
[null,null,null,null,null,null,null,null,null,null,null,null,null,null,null,null,null,null,null,null,null,null,null,null,null,null,null,null,null,null,null,null,null,null,null,null,null,null,null,null,null,null,null,null,null,null,null,null,null,null,null,null,null,"Training plans developed and implemented in each country on topics such as using data for advocacy, tactical skills and results-cascade driven monitoring for impact",null,null,null,null,null,null,null,null,null,null,null,null,null,null,null,null,null,null,null,null,null,null,null,null,null,null,null,{"$f":"D64","v":0},{"$f":"AC64","v":0},{"$f":"BB64","v":"Training plans developed and implemented in each country on topics such as using data for advocacy, tactical skills and results-cascade driven monitoring for impact"},"placeholder"]
[null,null,null,null,null,null,null,null,null,null,null,null,null,null,null,null,null,null,null,"Add Another",null,null,null,null,null,null,null,null,null,null,null,null,null,null,null,null,null,null,null,null,null,null,null,null,"Add Another",null,null,null,null,null,null,null,null,null,null,null,null,null,null,null,null,null,null,null,null,null,null,null,null,null,"Add Another"]
[]
[null,null,"¨",null,{"$f":"IF(D68=\"\", INDIRECT(\"E\" & ROW()-4), INDIRECT(\"E\" & ROW()-4)+1)","v":1},null,null,null,null,null,null,null,null,null,null,null,null,null,null,null,null,null,null,"x",null,null,null,"¨",null,{"$f":"IF($E67<>INDIRECT(\"$E\"&ROW()-4),$E67&\".1\",IF($AC68=\"\",INDIRECT(\"$AD\"&ROW()-4),LEFT(INDIRECT(\"$E\"&ROW()))&\".\"&RIGHT(INDIRECT(\"$AD\"&ROW()-4),LEN(INDIRECT(\"$AD\"&ROW()-4))-FIND(\".\",INDIRECT(\"$AD\"&ROW()-4)))+1))","v":"1.1"},null,null,null,null,null,null,null,null,null,null,null,null,null,null,null,null,null,null,"x",null,null,null,"þ",null,{"$f":"IF($AD67 <> INDIRECT(\"$AD\" & ROW() - 4), $AD67 & \".1\", LEFT(INDIRECT(\"$BC\" & ROW()-4), FIND(\".\",INDIRECT(\"$BC\" & ROW()-4),FIND(\".\",INDIRECT(\"$BC\" & ROW()-4))+1)) & RIGHT(INDIRECT(\"$BC\" & ROW()-4), LEN(INDIRECT(\"$BC\" & ROW()-4))-FIND(\".\",INDIRECT(\"$BC\" & ROW()-4),FIND(\".\",INDIRECT(\"$BC\" & ROW()-4))+1))+1)","v":"1.1.6"},null,null,null,null,null,null,null,null,null,null,null,null,null,null,null,null,null,null,null,"x"]
[null,null,null,null,null,null,null,null,null,null,null,null,null,null,null,null,null,null,null,null,null,null,null,null,null,null,null,null,null,null,null,null,null,null,null,null,null,null,null,null,null,null,null,null,null,null,null,null,null,null,null,null,null,"Outreach to and engagement of young people via country-specified mechanisms (such as coalition caucuses or working groups, tailored roles for existing but under-utilitzed coalition members, cultivation of champions) to increase participation, mentorship and sustainable leadership ",null,null,null,null,null,null,null,null,null,null,null,null,null,null,null,null,null,null,null,null,null,null,null,null,null,null,null,{"$f":"D68","v":0},{"$f":"AC68","v":0},{"$f":"BB68","v":"Outreach to and engagement of young people via country-specified mechanisms (such as coalition caucuses or working groups, tailored roles for existing but under-utilitzed coalition members, cultivation of champions) to increase participation, mentorship and sustainable leadership "},"placeholder"]
[null,null,null,null,null,null,null,null,null,null,null,null,null,null,null,null,null,null,null,"Add Another",null,null,null,null,null,null,null,null,null,null,null,null,null,null,null,null,null,null,null,null,null,null,null,null,"Add Another",null,null,null,null,null,null,null,null,null,null,null,null,null,null,null,null,null,null,null,null,null,null,null,null,null,"Add Another"]
[]
[null,null,"¨",null,{"$f":"IF(D72=\"\", INDIRECT(\"E\" & ROW()-4), INDIRECT(\"E\" & ROW()-4)+1)","v":1},null,null,null,null,null,null,null,null,null,null,null,null,null,null,null,null,null,null,"x",null,null,null,"¨",null,{"$f":"IF($E71<>INDIRECT(\"$E\"&ROW()-4),$E71&\".1\",IF($AC72=\"\",INDIRECT(\"$AD\"&ROW()-4),LEFT(INDIRECT(\"$E\"&ROW()))&\".\"&RIGHT(INDIRECT(\"$AD\"&ROW()-4),LEN(INDIRECT(\"$AD\"&ROW()-4))-FIND(\".\",INDIRECT(\"$AD\"&ROW()-4)))+1))","v":"1.1"},null,null,null,null,null,null,null,null,null,null,null,null,null,null,null,null,null,null,"x",null,null,null,"þ",null,{"$f":"IF($AD71 <> INDIRECT(\"$AD\" & ROW() - 4), $AD71 & \".1\", LEFT(INDIRECT(\"$BC\" & ROW()-4), FIND(\".\",INDIRECT(\"$BC\" & ROW()-4),FIND(\".\",INDIRECT(\"$BC\" & ROW()-4))+1)) & RIGHT(INDIRECT(\"$BC\" & ROW()-4), LEN(INDIRECT(\"$BC\" & ROW()-4))-FIND(\".\",INDIRECT(\"$BC\" & ROW()-4),FIND(\".\",INDIRECT(\"$BC\" & ROW()-4))+1))+1)","v":"1.1.7"},null,null,null,null,null,null,null,null,null,null,null,null,null,null,null,null,null,null,null,"x"]
[null,null,null,null,null,null,null,null,null,null,null,null,null,null,null,null,null,null,null,null,null,null,null,null,null,null,null,null,null,null,null,null,null,null,null,null,null,null,null,null,null,null,null,null,null,null,null,null,null,null,null,null,null,"Increased coalition diversity (guided by country landscape) with a focus on integrating additional partners including under-represented groups, stakeholders outside of the health sector and advocates working in complementary fields (budget analysis, maternal chiild health, etc)",null,null,null,null,null,null,null,null,null,null,null,null,null,null,null,null,null,null,null,null,null,null,null,null,null,null,null,{"$f":"D72","v":0},{"$f":"AC72","v":0},{"$f":"BB72","v":"Increased coalition diversity (guided by country landscape) with a focus on integrating additional partners including under-represented groups, stakeholders outside of the health sector and advocates working in complementary fields (budget analysis, maternal chiild health, etc)"},"placeholder"]
[null,null,null,null,null,null,null,null,null,null,null,null,null,null,null,null,null,null,null,"Add Another",null,null,null,null,null,null,null,null,null,null,null,null,null,null,null,null,null,null,null,null,null,null,null,null,"Add Another",null,null,null,null,null,null,null,null,null,null,null,null,null,null,null,null,null,null,null,null,null,null,null,null,null,"Add Another"]
[]
[null,null,"¨",null,{"$f":"IF(D76=\"\", INDIRECT(\"E\" & ROW()-4), INDIRECT(\"E\" & ROW()-4)+1)","v":1},null,null,null,null,null,null,null,null,null,null,null,null,null,null,null,null,null,null,"x",null,null,null,"þ",null,{"$f":"IF($E75<>INDIRECT(\"$E\"&ROW()-4),$E75&\".1\",IF($AC76=\"\",INDIRECT(\"$AD\"&ROW()-4),LEFT(INDIRECT(\"$E\"&ROW()))&\".\"&RIGHT(INDIRECT(\"$AD\"&ROW()-4),LEN(INDIRECT(\"$AD\"&ROW()-4))-FIND(\".\",INDIRECT(\"$AD\"&ROW()-4)))+1))","v":"1.2"},null,null,null,null,null,null,null,null,null,null,null,null,null,null,null,null,null,null,"x",null,null,null,"þ",null,{"$f":"IF($AD75 <> INDIRECT(\"$AD\" & ROW() - 4), $AD75 & \".1\", LEFT(INDIRECT(\"$BC\" & ROW()-4), FIND(\".\",INDIRECT(\"$BC\" & ROW()-4),FIND(\".\",INDIRECT(\"$BC\" & ROW()-4))+1)) & RIGHT(INDIRECT(\"$BC\" & ROW()-4), LEN(INDIRECT(\"$BC\" & ROW()-4))-FIND(\".\",INDIRECT(\"$BC\" & ROW()-4),FIND(\".\",INDIRECT(\"$BC\" & ROW()-4))+1))+1)","v":"1.2.1"},null,null,null,null,null,null,null,null,null,null,null,null,null,null,null,null,null,null,null,"x"]
[null,null,null,null,null,null,null,null,null,null,null,null,null,null,null,null,null,null,null,null,null,null,null,null,null,null,null,null,"Inreased use of evidence and policy analysis/ideas by decision makers to guide resource allocation and design, implementation and evaluation of programs in Malawi, Tanzania and Zimbabwe ",null,null,null,null,null,null,null,null,null,null,null,null,null,null,null,null,null,null,null,null,null,null,null,null,"A country-level landscape of policies, politics and partners developed by COMPASS coalition members in a \"living document\" format that captures and prioritizes specific barriers to policy and implementation ",null,null,null,null,null,null,null,null,null,null,null,null,null,null,null,null,null,null,null,null,null,null,null,null,null,null,null,{"$f":"D76","v":0},{"$f":"AC76","v":"Inreased use of evidence and policy analysis/ideas by decision makers to guide resource allocation and design, implementation and evaluation of programs in Malawi, Tanzania and Zimbabwe "},{"$f":"BB76","v":"A country-level landscape of policies, politics and partners developed by COMPASS coalition members in a \"living document\" format that captures and prioritizes specific barriers to policy and implementation "},"placeholder"]
[null,null,null,null,null,null,null,null,null,null,null,null,null,null,null,null,null,null,null,"Add Another",null,null,null,null,null,null,null,null,null,null,null,null,null,null,null,null,null,null,null,null,null,null,null,null,"Add Another",null,null,null,null,null,null,null,null,null,null,null,null,null,null,null,null,null,null,null,null,null,null,null,null,null,"Add Another"]
[]
[null,null,"¨",null,{"$f":"IF(D80=\"\", INDIRECT(\"E\" & ROW()-4), INDIRECT(\"E\" & ROW()-4)+1)","v":1},null,null,null,null,null,null,null,null,null,null,null,null,null,null,null,null,null,null,"x",null,null,null,"¨",null,{"$f":"IF($E79<>INDIRECT(\"$E\"&ROW()-4),$E79&\".1\",IF($AC80=\"\",INDIRECT(\"$AD\"&ROW()-4),LEFT(INDIRECT(\"$E\"&ROW()))&\".\"&RIGHT(INDIRECT(\"$AD\"&ROW()-4),LEN(INDIRECT(\"$AD\"&ROW()-4))-FIND(\".\",INDIRECT(\"$AD\"&ROW()-4)))+1))","v":"1.2"},null,null,null,null,null,null,null,null,null,null,null,null,null,null,null,null,null,null,"x",null,null,null,"þ",null,{"$f":"IF($AD79 <> INDIRECT(\"$AD\" & ROW() - 4), $AD79 & \".1\", LEFT(INDIRECT(\"$BC\" & ROW()-4), FIND(\".\",INDIRECT(\"$BC\" & ROW()-4),FIND(\".\",INDIRECT(\"$BC\" & ROW()-4))+1)) & RIGHT(INDIRECT(\"$BC\" & ROW()-4), LEN(INDIRECT(\"$BC\" & ROW()-4))-FIND(\".\",INDIRECT(\"$BC\" & ROW()-4),FIND(\".\",INDIRECT(\"$BC\" & ROW()-4))+1))+1)","v":"1.2.2"},null,null,null,null,null,null,null,null,null,null,null,null,null,null,null,null,null,null,null,"x"]
[null,null,null,null,null,null,null,null,null,null,null,null,null,null,null,null,null,null,null,null,null,null,null,null,null,null,null,null,null,null,null,null,null,null,null,null,null,null,null,null,null,null,null,null,null,null,null,null,null,null,null,null,null,"At least two barriers identfied by country landscape analysis addressed via data-informed campaigns per country per year (campaigns defined and tracked via a common COMPASS tool that includes strategic objective, targets and a flexible set of tactics ",null,null,null,null,null,null,null,null,null,null,null,null,null,null,null,null,null,null,null,null,null,null,null,null,null,null,null,{"$f":"D80","v":0},{"$f":"AC80","v":0},{"$f":"BB80","v":"At least two barriers identfied by country landscape analysis addressed via data-informed campaigns per country per year (campaigns defined and tracked via a common COMPASS tool that includes strategic objective, targets and a flexible set of tactics "},"placeholder"]
[null,null,null,null,null,null,null,null,null,null,null,null,null,null,null,null,null,null,null,"Add Another",null,null,null,null,null,null,null,null,null,null,null,null,null,null,null,null,null,null,null,null,null,null,null,null,"Add Another",null,null,null,null,null,null,null,null,null,null,null,null,null,null,null,null,null,null,null,null,null,null,null,null,null,"Add Another"]
[]
[null,null,"¨",null,{"$f":"IF(D84=\"\", INDIRECT(\"E\" & ROW()-4), INDIRECT(\"E\" & ROW()-4)+1)","v":1},null,null,null,null,null,null,null,null,null,null,null,null,null,null,null,null,null,null,"x",null,null,null,"¨",null,{"$f":"IF($E83<>INDIRECT(\"$E\"&ROW()-4),$E83&\".1\",IF($AC84=\"\",INDIRECT(\"$AD\"&ROW()-4),LEFT(INDIRECT(\"$E\"&ROW()))&\".\"&RIGHT(INDIRECT(\"$AD\"&ROW()-4),LEN(INDIRECT(\"$AD\"&ROW()-4))-FIND(\".\",INDIRECT(\"$AD\"&ROW()-4)))+1))","v":"1.2"},null,null,null,null,null,null,null,null,null,null,null,null,null,null,null,null,null,null,"x",null,null,null,"þ",null,{"$f":"IF($AD83 <> INDIRECT(\"$AD\" & ROW() - 4), $AD83 & \".1\", LEFT(INDIRECT(\"$BC\" & ROW()-4), FIND(\".\",INDIRECT(\"$BC\" & ROW()-4),FIND(\".\",INDIRECT(\"$BC\" & ROW()-4))+1)) & RIGHT(INDIRECT(\"$BC\" & ROW()-4), LEN(INDIRECT(\"$BC\" & ROW()-4))-FIND(\".\",INDIRECT(\"$BC\" & ROW()-4),FIND(\".\",INDIRECT(\"$BC\" & ROW()-4))+1))+1)","v":"1.2.3"},null,null,null,null,null,null,null,null,null,null,null,null,null,null,null,null,null,null,null,"x"]
[null,null,null,null,null,null,null,null,null,null,null,null,null,null,null,null,null,null,null,null,null,null,null,null,null,null,null,null,null,null,null,null,null,null,null,null,null,null,null,null,null,null,null,null,null,null,null,null,null,null,null,null,null,"At least two cross-cutting issue landscape analyses (eg focusing on sexual and reproductive health and rights and key populations issues) ",null,null,null,null,null,null,null,null,null,null,null,null,null,null,null,null,null,null,null,null,null,null,null,null,null,null,null,{"$f":"D84","v":0},{"$f":"AC84","v":0},{"$f":"BB84","v":"At least two cross-cutting issue landscape analyses (eg focusing on sexual and reproductive health and rights and key populations issues) "},"placeholder"]
[null,null,null,null,null,null,null,null,null,null,null,null,null,null,null,null,null,null,null,"Add Another",null,null,null,null,null,null,null,null,null,null,null,null,null,null,null,null,null,null,null,null,null,null,null,null,"Add Another",null,null,null,null,null,null,null,null,null,null,null,null,null,null,null,null,null,null,null,null,null,null,null,null,null,"Add Another"]
[]
[null,null,"¨",null,{"$f":"IF(D88=\"\", INDIRECT(\"E\" & ROW()-4), INDIRECT(\"E\" & ROW()-4)+1)","v":1},null,null,null,null,null,null,null,null,null,null,null,null,null,null,null,null,null,null,"x",null,null,null,"¨",null,{"$f":"IF($E87<>INDIRECT(\"$E\"&ROW()-4),$E87&\".1\",IF($AC88=\"\",INDIRECT(\"$AD\"&ROW()-4),LEFT(INDIRECT(\"$E\"&ROW()))&\".\"&RIGHT(INDIRECT(\"$AD\"&ROW()-4),LEN(INDIRECT(\"$AD\"&ROW()-4))-FIND(\".\",INDIRECT(\"$AD\"&ROW()-4)))+1))","v":"1.2"},null,null,null,null,null,null,null,null,null,null,null,null,null,null,null,null,null,null,"x",null,null,null,"þ",null,{"$f":"IF($AD87 <> INDIRECT(\"$AD\" & ROW() - 4), $AD87 & \".1\", LEFT(INDIRECT(\"$BC\" & ROW()-4), FIND(\".\",INDIRECT(\"$BC\" & ROW()-4),FIND(\".\",INDIRECT(\"$BC\" & ROW()-4))+1)) & RIGHT(INDIRECT(\"$BC\" & ROW()-4), LEN(INDIRECT(\"$BC\" & ROW()-4))-FIND(\".\",INDIRECT(\"$BC\" & ROW()-4),FIND(\".\",INDIRECT(\"$BC\" & ROW()-4))+1))+1)","v":"1.2.4"},null,null,null,null,null,null,null,null,null,null,null,null,null,null,null,null,null,null,null,"x"]
[null,null,null,null,null,null,null,null,null,null,null,null,null,null,null,null,null,null,null,null,null,null,null,null,null,null,null,null,null,null,null,null,null,null,null,null,null,null,null,null,null,null,null,null,null,null,null,null,null,null,null,null,null,"At least two regional or international-level barriers addressed via cross-cutting regional and/or international campaigns focused on decision makers at national and funder/headquarter levels ",null,null,null,null,null,null,null,null,null,null,null,null,null,null,null,null,null,null,null,null,null,null,null,null,null,null,null,{"$f":"D88","v":0},{"$f":"AC88","v":0},{"$f":"BB88","v":"At least two regional or international-level barriers addressed via cross-cutting regional and/or international campaigns focused on decision makers at national and funder/headquarter levels "},"placeholder"]
[null,null,null,null,null,null,null,null,null,null,null,null,null,null,null,null,null,null,null,"Add Another",null,null,null,null,null,null,null,null,null,null,null,null,null,null,null,null,null,null,null,null,null,null,null,null,"Add Another",null,null,null,null,null,null,null,null,null,null,null,null,null,null,null,null,null,null,null,null,null,null,null,null,null,"Add Another"]
[]
[null,null,"¨",null,{"$f":"IF(D92=\"\", INDIRECT(\"E\" & ROW()-4), INDIRECT(\"E\" & ROW()-4)+1)","v":1},null,null,null,null,null,null,null,null,null,null,null,null,null,null,null,null,null,null,"x",null,null,null,"¨",null,{"$f":"IF($E91<>INDIRECT(\"$E\"&ROW()-4),$E91&\".1\",IF($AC92=\"\",INDIRECT(\"$AD\"&ROW()-4),LEFT(INDIRECT(\"$E\"&ROW()))&\".\"&RIGHT(INDIRECT(\"$AD\"&ROW()-4),LEN(INDIRECT(\"$AD\"&ROW()-4))-FIND(\".\",INDIRECT(\"$AD\"&ROW()-4)))+1))","v":"1.2"},null,null,null,null,null,null,null,null,null,null,null,null,null,null,null,null,null,null,"x",null,null,null,"þ",null,{"$f":"IF($AD91 <> INDIRECT(\"$AD\" & ROW() - 4), $AD91 & \".1\", LEFT(INDIRECT(\"$BC\" & ROW()-4), FIND(\".\",INDIRECT(\"$BC\" & ROW()-4),FIND(\".\",INDIRECT(\"$BC\" & ROW()-4))+1)) & RIGHT(INDIRECT(\"$BC\" & ROW()-4), LEN(INDIRECT(\"$BC\" & ROW()-4))-FIND(\".\",INDIRECT(\"$BC\" & ROW()-4),FIND(\".\",INDIRECT(\"$BC\" & ROW()-4))+1))+1)","v":"1.2.5"},null,null,null,null,null,null,null,null,null,null,null,null,null,null,null,null,null,null,null,"x"]
[null,null,null,null,null,null,null,null,null,null,null,null,null,null,null,null,null,null,null,null,null,null,null,null,null,null,null,null,null,null,null,null,null,null,null,null,null,null,null,null,null,null,null,null,null,null,null,null,null,null,null,null,null,"Gaps in capacity for data-driven advocacy addressed via a Data for Advocacy distance learning course ",null,null,null,null,null,null,null,null,null,null,null,null,null,null,null,null,null,null,null,null,null,null,null,null,null,null,null,{"$f":"D92","v":0},{"$f":"AC92","v":0},{"$f":"BB92","v":"Gaps in capacity for data-driven advocacy addressed via a Data for Advocacy distance learning course "},"placeholder"]
[null,null,null,null,null,null,null,null,null,null,null,null,null,null,null,null,null,null,null,"Add Another",null,null,null,null,null,null,null,null,null,null,null,null,null,null,null,null,null,null,null,null,null,null,null,null,"Add Another",null,null,null,null,null,null,null,null,null,null,null,null,null,null,null,null,null,null,null,null,null,null,null,null,null,"Add Another"]
[]
[null,null,"¨",null,{"$f":"IF(D96=\"\", INDIRECT(\"E\" & ROW()-4), INDIRECT(\"E\" & ROW()-4)+1)","v":1},null,null,null,null,null,null,null,null,null,null,null,null,null,null,null,null,null,null,"x",null,null,null,"¨",null,{"$f":"IF($E95<>INDIRECT(\"$E\"&ROW()-4),$E95&\".1\",IF($AC96=\"\",INDIRECT(\"$AD\"&ROW()-4),LEFT(INDIRECT(\"$E\"&ROW()))&\".\"&RIGHT(INDIRECT(\"$AD\"&ROW()-4),LEN(INDIRECT(\"$AD\"&ROW()-4))-FIND(\".\",INDIRECT(\"$AD\"&ROW()-4)))+1))","v":"1.2"},null,null,null,null,null,null,null,null,null,null,null,null,null,null,null,null,null,null,"x",null,null,null,"þ",null,{"$f":"IF($AD95 <> INDIRECT(\"$AD\" & ROW() - 4), $AD95 & \".1\", LEFT(INDIRECT(\"$BC\" & ROW()-4), FIND(\".\",INDIRECT(\"$BC\" & ROW()-4),FIND(\".\",INDIRECT(\"$BC\" & ROW()-4))+1)) & RIGHT(INDIRECT(\"$BC\" & ROW()-4), LEN(INDIRECT(\"$BC\" & ROW()-4))-FIND(\".\",INDIRECT(\"$BC\" & ROW()-4),FIND(\".\",INDIRECT(\"$BC\" & ROW()-4))+1))+1)","v":"1.2.6"},null,null,null,null,null,null,null,null,null,null,null,null,null,null,null,null,null,null,null,"x"]
[null,null,null,null,null,null,null,null,null,null,null,null,null,null,null,null,null,null,null,null,null,null,null,null,null,null,null,null,null,null,null,null,null,null,null,null,null,null,null,null,null,null,null,null,null,null,null,null,null,null,null,null,null,"Development of at least two databases to fill gaps in data availability and accessibility at country and global level (PEPFAR indicators, GFATM data) ",null,null,null,null,null,null,null,null,null,null,null,null,null,null,null,null,null,null,null,null,null,null,null,null,null,null,null,{"$f":"D96","v":0},{"$f":"AC96","v":0},{"$f":"BB96","v":"Development of at least two databases to fill gaps in data availability and accessibility at country and global level (PEPFAR indicators, GFATM data) "},"placeholder"]
[null,null,null,null,null,null,null,null,null,null,null,null,null,null,null,null,null,null,null,"Add Another",null,null,null,null,null,null,null,null,null,null,null,null,null,null,null,null,null,null,null,null,null,null,null,null,"Add Another",null,null,null,null,null,null,null,null,null,null,null,null,null,null,null,null,null,null,null,null,null,null,null,null,null,"Add Another"]
[]
[null,null,"¨",null,{"$f":"IF(D100=\"\", INDIRECT(\"E\" & ROW()-4), INDIRECT(\"E\" & ROW()-4)+1)","v":1},null,null,null,null,null,null,null,null,null,null,null,null,null,null,null,null,null,null,"x",null,null,null,"¨",null,{"$f":"IF($E99<>INDIRECT(\"$E\"&ROW()-4),$E99&\".1\",IF($AC100=\"\",INDIRECT(\"$AD\"&ROW()-4),LEFT(INDIRECT(\"$E\"&ROW()))&\".\"&RIGHT(INDIRECT(\"$AD\"&ROW()-4),LEN(INDIRECT(\"$AD\"&ROW()-4))-FIND(\".\",INDIRECT(\"$AD\"&ROW()-4)))+1))","v":"1.2"},null,null,null,null,null,null,null,null,null,null,null,null,null,null,null,null,null,null,"x",null,null,null,"þ",null,{"$f":"IF($AD99 <> INDIRECT(\"$AD\" & ROW() - 4), $AD99 & \".1\", LEFT(INDIRECT(\"$BC\" & ROW()-4), FIND(\".\",INDIRECT(\"$BC\" & ROW()-4),FIND(\".\",INDIRECT(\"$BC\" & ROW()-4))+1)) & RIGHT(INDIRECT(\"$BC\" & ROW()-4), LEN(INDIRECT(\"$BC\" & ROW()-4))-FIND(\".\",INDIRECT(\"$BC\" & ROW()-4),FIND(\".\",INDIRECT(\"$BC\" & ROW()-4))+1))+1)","v":"1.2.7"},null,null,null,null,null,null,null,null,null,null,null,null,null,null,null,null,null,null,null,"x"]
[null,null,null,null,null,null,null,null,null,null,null,null,null,null,null,null,null,null,null,null,null,null,null,null,null,null,null,null,null,null,null,null,null,null,null,null,null,null,null,null,null,null,null,null,null,null,null,null,null,null,null,null,null,"A MERL system that ensures that country-level advocacy strategies, impacts and best practices are better understood, documented and disseminated ",null,null,null,null,null,null,null,null,null,null,null,null,null,null,null,null,null,null,null,null,null,null,null,null,null,null,null,{"$f":"D100","v":0},{"$f":"AC100","v":0},{"$f":"BB100","v":"A MERL system that ensures that country-level advocacy strategies, impacts and best practices are better understood, documented and disseminated "},"placeholder"]
[null,null,null,null,null,null,null,null,null,null,null,null,null,null,null,null,null,null,null,"Add Another",null,null,null,null,null,null,null,null,null,null,null,null,null,null,null,null,null,null,null,null,null,null,null,null,"Add Another",null,null,null,null,null,null,null,null,null,null,null,null,null,null,null,null,null,null,null,null,null,null,null,null,null,"Add Another"]
[]
[null,null,"þ",null,{"$f":"IF(D104=\"\", INDIRECT(\"E\" & ROW()-4), INDIRECT(\"E\" & ROW()-4)+1)","v":2},null,null,null,null,null,null,null,null,null,null,null,null,null,null,null,null,null,null,"x",null,null,null,"þ",null,{"$f":"IF($E103<>INDIRECT(\"$E\"&ROW()-4),$E103&\".1\",IF($AC104=\"\",INDIRECT(\"$AD\"&ROW()-4),LEFT(INDIRECT(\"$E\"&ROW()))&\".\"&RIGHT(INDIRECT(\"$AD\"&ROW()-4),LEN(INDIRECT(\"$AD\"&ROW()-4))-FIND(\".\",INDIRECT(\"$AD\"&ROW()-4)))+1))","v":"2.1"},null,null,null,null,null,null,null,null,null,null,null,null,null,null,null,null,null,null,"x",null,null,null,"þ",null,{"$f":"IF($AD103 <> INDIRECT(\"$AD\" & ROW() - 4), $AD103 & \".1\", LEFT(INDIRECT(\"$BC\" & ROW()-4), FIND(\".\",INDIRECT(\"$BC\" & ROW()-4),FIND(\".\",INDIRECT(\"$BC\" & ROW()-4))+1)) & RIGHT(INDIRECT(\"$BC\" & ROW()-4), LEN(INDIRECT(\"$BC\" & ROW()-4))-FIND(\".\",INDIRECT(\"$BC\" & ROW()-4),FIND(\".\",INDIRECT(\"$BC\" & ROW()-4))+1))+1)","v":"2.1.1"},null,null,null,null,null,null,null,null,null,null,null,null,null,null,null,null,null,null,null,"x"]
[null,null,null,"Increased resource commitments for a comprehensive HIV response by USG and other major funders ",null,null,null,null,null,null,null,null,null,null,null,null,null,null,null,null,null,null,null,null,null,null,null,null,"Increased support for and/or engagement with COMPASS Africa's priorities regarding funding for a comprehensive HIV response by global leadership",null,null,null,null,null,null,null,null,null,null,null,null,null,null,null,null,null,null,null,null,null,null,null,null,"Headquarters-level advocacy in Washington, DC, to build support for maintaining and/or expanding existing USG funding level ",null,null,null,null,null,null,null,null,null,null,null,null,null,null,null,null,null,null,null,null,null,null,null,null,null,null,null,{"$f":"D104","v":"Increased resource commitments for a comprehensive HIV response by USG and other major funders "},{"$f":"AC104","v":"Increased support for and/or engagement with COMPASS Africa's priorities regarding funding for a comprehensive HIV response by global leadership"},{"$f":"BB104","v":"Headquarters-level advocacy in Washington, DC, to build support for maintaining and/or expanding existing USG funding level "},"placeholder"]
[null,null,null,null,null,null,null,null,null,null,null,null,null,null,null,null,null,null,null,"Add Another",null,null,null,null,null,null,null,null,null,null,null,null,null,null,null,null,null,null,null,null,null,null,null,null,"Add Another",null,null,null,null,null,null,null,null,null,null,null,null,null,null,null,null,null,null,null,null,null,null,null,null,null,"Add Another"]
[]
[null,null,"¨",null,{"$f":"IF(D108=\"\", INDIRECT(\"E\" & ROW()-4), INDIRECT(\"E\" & ROW()-4)+1)","v":2},null,null,null,null,null,null,null,null,null,null,null,null,null,null,null,null,null,null,"x",null,null,null,"¨",null,{"$f":"IF($E107<>INDIRECT(\"$E\"&ROW()-4),$E107&\".1\",IF($AC108=\"\",INDIRECT(\"$AD\"&ROW()-4),LEFT(INDIRECT(\"$E\"&ROW()))&\".\"&RIGHT(INDIRECT(\"$AD\"&ROW()-4),LEN(INDIRECT(\"$AD\"&ROW()-4))-FIND(\".\",INDIRECT(\"$AD\"&ROW()-4)))+1))","v":"2.1"},null,null,null,null,null,null,null,null,null,null,null,null,null,null,null,null,null,null,"x",null,null,null,"þ",null,{"$f":"IF($AD107 <> INDIRECT(\"$AD\" & ROW() - 4), $AD107 & \".1\", LEFT(INDIRECT(\"$BC\" & ROW()-4), FIND(\".\",INDIRECT(\"$BC\" & ROW()-4),FIND(\".\",INDIRECT(\"$BC\" & ROW()-4))+1)) & RIGHT(INDIRECT(\"$BC\" & ROW()-4), LEN(INDIRECT(\"$BC\" & ROW()-4))-FIND(\".\",INDIRECT(\"$BC\" & ROW()-4),FIND(\".\",INDIRECT(\"$BC\" & ROW()-4))+1))+1)","v":"2.1.2"},null,null,null,null,null,null,null,null,null,null,null,null,null,null,null,null,null,null,null,"x"]
[null,null,null,null,null,null,null,null,null,null,null,null,null,null,null,null,null,null,null,null,null,null,null,null,null,null,null,null,null,null,null,null,null,null,null,null,null,null,null,null,null,null,null,null,null,null,null,null,null,null,null,null,null,"Secretariat-level advocacy with UNAIDS and GFATM to build support for COMPASS-articulated goals related to overall and GFATM-specific resource envelope",null,null,null,null,null,null,null,null,null,null,null,null,null,null,null,null,null,null,null,null,null,null,null,null,null,null,null,{"$f":"D108","v":0},{"$f":"AC108","v":0},{"$f":"BB108","v":"Secretariat-level advocacy with UNAIDS and GFATM to build support for COMPASS-articulated goals related to overall and GFATM-specific resource envelope"},"placeholder"]
[null,null,null,null,null,null,null,null,null,null,null,null,null,null,null,null,null,null,null,"Add Another",null,null,null,null,null,null,null,null,null,null,null,null,null,null,null,null,null,null,null,null,null,null,null,null,"Add Another",null,null,null,null,null,null,null,null,null,null,null,null,null,null,null,null,null,null,null,null,null,null,null,null,null,"Add Another"]
[]
[null,null,"þ",null,{"$f":"IF(D112=\"\", INDIRECT(\"E\" & ROW()-4), INDIRECT(\"E\" & ROW()-4)+1)","v":3},null,null,null,null,null,null,null,null,null,null,null,null,null,null,null,null,null,null,"x",null,null,null,"þ",null,{"$f":"IF($E111<>INDIRECT(\"$E\"&ROW()-4),$E111&\".1\",IF($AC112=\"\",INDIRECT(\"$AD\"&ROW()-4),LEFT(INDIRECT(\"$E\"&ROW()))&\".\"&RIGHT(INDIRECT(\"$AD\"&ROW()-4),LEN(INDIRECT(\"$AD\"&ROW()-4))-FIND(\".\",INDIRECT(\"$AD\"&ROW()-4)))+1))","v":"3.1"},null,null,null,null,null,null,null,null,null,null,null,null,null,null,null,null,null,null,"x",null,null,null,"þ",null,{"$f":"IF($AD111 <> INDIRECT(\"$AD\" & ROW() - 4), $AD111 & \".1\", LEFT(INDIRECT(\"$BC\" & ROW()-4), FIND(\".\",INDIRECT(\"$BC\" & ROW()-4),FIND(\".\",INDIRECT(\"$BC\" & ROW()-4))+1)) & RIGHT(INDIRECT(\"$BC\" & ROW()-4), LEN(INDIRECT(\"$BC\" & ROW()-4))-FIND(\".\",INDIRECT(\"$BC\" & ROW()-4),FIND(\".\",INDIRECT(\"$BC\" & ROW()-4))+1))+1)","v":"3.1.1"},null,null,null,null,null,null,null,null,null,null,null,null,null,null,null,null,null,null,null,"x"]
[null,null,null,"Increased national government investments (inclusive of financial, human resource and infrastructure) in the HIV response in Malawi, Zimbabwe and Tanzania ",null,null,null,null,null,null,null,null,null,null,null,null,null,null,null,null,null,null,null,null,null,null,null,null,"Increased advocacy capacity among key influencers in support of HIV and health sector financing in Malawi, Tanzania and Zimbabwe ",null,null,null,null,null,null,null,null,null,null,null,null,null,null,null,null,null,null,null,null,null,null,null,null,"COMPASS Africa coalition member capacity for budget advocacy increased via country-specific approaches (training, mentorship, etc) ",null,null,null,null,null,null,null,null,null,null,null,null,null,null,null,null,null,null,null,null,null,null,null,null,null,null,null,{"$f":"D112","v":"Increased national government investments (inclusive of financial, human resource and infrastructure) in the HIV response in Malawi, Zimbabwe and Tanzania "},{"$f":"AC112","v":"Increased advocacy capacity among key influencers in support of HIV and health sector financing in Malawi, Tanzania and Zimbabwe "},{"$f":"BB112","v":"COMPASS Africa coalition member capacity for budget advocacy increased via country-specific approaches (training, mentorship, etc) "},"placeholder"]
[null,null,null,null,null,null,null,null,null,null,null,null,null,null,null,null,null,null,null,"Add Another",null,null,null,null,null,null,null,null,null,null,null,null,null,null,null,null,null,null,null,null,null,null,null,null,"Add Another",null,null,null,null,null,null,null,null,null,null,null,null,null,null,null,null,null,null,null,null,null,null,null,null,null,"Add Another"]
[]
[null,null,"¨",null,{"$f":"IF(D116=\"\", INDIRECT(\"E\" & ROW()-4), INDIRECT(\"E\" & ROW()-4)+1)","v":3},null,null,null,null,null,null,null,null,null,null,null,null,null,null,null,null,null,null,"x",null,null,null,"¨",null,{"$f":"IF($E115<>INDIRECT(\"$E\"&ROW()-4),$E115&\".1\",IF($AC116=\"\",INDIRECT(\"$AD\"&ROW()-4),LEFT(INDIRECT(\"$E\"&ROW()))&\".\"&RIGHT(INDIRECT(\"$AD\"&ROW()-4),LEN(INDIRECT(\"$AD\"&ROW()-4))-FIND(\".\",INDIRECT(\"$AD\"&ROW()-4)))+1))","v":"3.1"},null,null,null,null,null,null,null,null,null,null,null,null,null,null,null,null,null,null,"x",null,null,null,"þ",null,{"$f":"IF($AD115 <> INDIRECT(\"$AD\" & ROW() - 4), $AD115 & \".1\", LEFT(INDIRECT(\"$BC\" & ROW()-4), FIND(\".\",INDIRECT(\"$BC\" & ROW()-4),FIND(\".\",INDIRECT(\"$BC\" & ROW()-4))+1)) & RIGHT(INDIRECT(\"$BC\" & ROW()-4), LEN(INDIRECT(\"$BC\" & ROW()-4))-FIND(\".\",INDIRECT(\"$BC\" & ROW()-4),FIND(\".\",INDIRECT(\"$BC\" & ROW()-4))+1))+1)","v":"3.1.2"},null,null,null,null,null,null,null,null,null,null,null,null,null,null,null,null,null,null,null,"x"]
[null,null,null,null,null,null,null,null,null,null,null,null,null,null,null,null,null,null,null,null,null,null,null,null,null,null,null,null,null,null,null,null,null,null,null,null,null,null,null,null,null,null,null,null,null,null,null,null,null,null,null,null,null,"Allies in private sector, budget and finance ministries and non-HIV health fields receive tailored briefings drawing on country landscape analyses that present advocacy case and strategy for increasing national investments for HIV and health overall ",null,null,null,null,null,null,null,null,null,null,null,null,null,null,null,null,null,null,null,null,null,null,null,null,null,null,null,{"$f":"D116","v":0},{"$f":"AC116","v":0},{"$f":"BB116","v":"Allies in private sector, budget and finance ministries and non-HIV health fields receive tailored briefings drawing on country landscape analyses that present advocacy case and strategy for increasing national investments for HIV and health overall "},"placeholder"]
[null,null,null,null,null,null,null,null,null,null,null,null,null,null,null,null,null,null,null,"Add Another",null,null,null,null,null,null,null,null,null,null,null,null,null,null,null,null,null,null,null,null,null,null,null,null,"Add Another",null,null,null,null,null,null,null,null,null,null,null,null,null,null,null,null,null,null,null,null,null,null,null,null,null,"Add Another"]
[]
[]
[]
[]
[]
[]
[null,"Privacy and Non-confidentiality Notice"]
[null,"The Foundation is required by the IRS to publish a list of its grants. We also provide a general description of our grants on our web sites, in press releases and in other marketing materials. Subject to the foundation’s Privacy Policy, the foundation may also share information you provide to us (either orally or in writing) with third parties, including external reviewers, key partners and co-funders. This document is subject to the foundation’s Terms of Use."]
[null,"Privacy Policy"]
[null,"Terms of Use"]

{"sheet":"Results Tracker - Current","index":2,"n_rows":63,"n_cols":119,"rows_kept":63,"cut":false,"hidden":false,"merged":[[49,1,49,4],[49,5,49,8],[49,9,49,12],[49,13,49,28],[49,29,49,38],[49,39,49,48],[49,49,49,58],[49,59,49,66],[49,67,49,88],[48,1,48,4],[48,5,48,8],[48,9,48,12],[48,13,48,28],[48,29,48,38],[48,39,48,48],[48,49,48,58],[48,59,48,66],[48,67,48,88],[46,49,46,58],[46,59,46,66],[46,67,46,88],[47,1,47,4],[47,5,47,8],[47,9,47,12],[47,13,47,28],[47,29,47,38],[47,39,47,48],[47,49,47,58],[46,1,46,4],[46,5,46,8],[46,9,46,12],[46,13,46,28],[46,29,46,38],[46,39,46,48],[47,59,47,66],[47,67,47,88],[45,1,45,4],[45,5,45,8],[45,9,45,12],[45,13,45,28],[45,29,45,38],[45,39,45,48],[45,49,45,58],[45,59,45,66],[45,67,45,88],[44,1,44,4],[44,5,44,8],[44,9,44,12],[44,13,44,28],[44,29,44,38],[44,39,44,48],[44,49,44,58],[44,59,44,66],[44,67,44,88],[42,49,42,58],[42,59,42,66],[42,67,42,88],[43,1,43,4],[43,5,43,8],[43,9,43,12],[43,13,43,28],[43,29,43,38],[43,39,43,48],[43,49,43,58],[42,1,42,4],[42,5,42,8],[42,9,42,12],[42,13,42,28],[42,29,42,38],[42,39,42,48],[43,59,43,66],[43,67,43,88],[41,1,41,4],[41,5,41,8],[41,9,41,12],[41,13,41,28],[41,29,41,38],[41,39,41,48],[41,49,41,58],[41,59,41,66],[41,67,41,88],[40,1,40,4],[40,5,40,8],[40,9,40,12],[40,13,40,28],[40,29,40,38],[40,39,40,48],[40,49,40,58],[40,59,40,66],[40,67,40,88],[38,49,38,58],[38,59,38,66],[38,67,38,88],[39,1,39,4],[39,5,39,8],[39,9,39,12],[39,13,39,28],[39,29,39,38],[39,39,39,48],[39,49,39,58],[38,1,38,4],[38,5,38,8],[38,9,38,12],[38,13,38,28],[38,29,38,38],[38,39,38,48],[39,59,39,66],[39,67,39,88],[37,1,37,4],[37,5,37,8],[37,9,37,12],[37,13,37,28],[37,29,37,38],[37,39,37,48],[37,49,37,58],[37,59,37,66],[37,67,37,88],[36,1,36,4],[36,5,36,8],[36,9,36,12],[36,13,36,28],[36,29,36,38],[36,39,36,48],[36,49,36,58],[36,59,36,66],[36,67,36,88],[34,49,34,58],[34,59,34,66],[34,67,34,88],[35,1,35,4],[35,5,35,8],[35,9,35,12],[35,13,35,28],[35,29,35,38],[35,39,35,48],[35,49,35,58],[34,1,34,4],[34,5,34,8],[34,9,34,12],[34,13,34,28],[34,29,34,38],[34,39,34,48],[35,59,35,66],[35,67,35,88],[33,1,33,4],[33,5,33,8],[33,9,33,12],[33,13,33,28],[33,29,33,38],[33,39,33,48],[33,49,33,58],[33,59,33,66],[33,67,33,88],[32,1,32,4],[32,5,32,8],[32,9,32,12],[32,13,32,28],[32,29,32,38],[32,39,32,48],[32,49,32,58],[32,59,32,66],[32,67,32,88],[30,49,30,58],[30,59,30,66],[30,67,30,88],[31,1,31,4],[31,5,31,8],[31,9,31,12],[31,13,31,28],[31,29,31,38],[31,39,31,48],[31,49,31,58],[30,1,30,4],[30,5,30,8],[30,9,30,12],[30,13,30,28],[30,29,30,38],[30,39,30,48],[31,59,31,66],[31,67,31,88],[28,29,28,38],[28,39,28,48],[28,49,28,58],[28,59,28,66],[28,67,28,88],[29,1,29,4],[29,5,29,8],[29,9,29,12],[29,13,29,28],[29,29,29,38],[29,39,29,48],[29,49,29,58],[29,59,29,66],[29,67,29,88],[60,1,60,77],[61,1,61,6],[62,1,62,6],[56,2,56,38],[56,40,56,82],[26,49,26,58],[26,59,26,66],[26,67,26,88],[27,1,27,4],[27,5,27,8],[27,9,27,12],[27,13,27,28],[27,29,27,38],[27,39,27,48],[27,49,27,58],[26,1,26,4],[26,5,26,8],[26,9,26,12],[26,13,26,28],[26,29,26,38],[26,39,26,48],[27,59,27,66],[27,67,27,88],[28,1,28,4],[24,1,24,4],[24,5,24,8],[24,9,24,12],[24,13,24,28],[24,29,24,38],[24,39,24,48],[24,49,24,58],[24,67,24,88],[51,1,51,8],[51,10,51,23],[51,25,51,32],[24,59,24,66],[25,1,25,4],[25,5,25,8],[25,9,25,12],[25,13,25,28],[25,29,25,38],[25,39,25,48],[25,49,25,58],[25,59,25,66],[25,67,25,88],[28,5,28,8],[28,9,28,12],[28,13,28,28],[23,59,23,66],[23,67,23,88],[19,1,19,88],[21,1,21,8],[21,10,21,23],[22,1,22,50],[22,51,22,54],[23,1,23,12],[23,13,23,28],[23,29,23,38],[23,39,23,48],[23,49,23,58],[15,2,15,15],[16,1,16,77],[17,1,17,88],[18,1,18,88],[18,90,18,92],[18,103,18,105],[18,94,18,96],[18,98,18,100],[11,2,11,15],[11,17,11,39],[11,41,11,52],[11,54,11,76],[13,2,13,15],[13,17,13,39],[13,41,13,52],[13,54,13,76],[9,2,9,13],[9,14,9,15],[9,17,9,76],[2,1,2,88],[3,1,3,88],[4,1,4,88],[5,1,5,23],[5,24,5,27],[6,1,6,77],[0,1,0,19],[0,21,0,39],[0,41,0,59],[0,61,0,79],[0,80,0,88],[1,1,1,88],[7,2,7,13],[7,14,7,15],[7,17,7,76]]}
[null,"Concept",null,null,null,null,null,null,null,null,null,null,null,null,null,null,null,null,null,null,null,"Pre-Proposal",null,null,null,null,null,null,null,null,null,null,null,null,null,null,null,null,null,null,null,"Investment Development",null,null,null,null,null,null,null,null,null,null,null,null,null,null,null,null,null,null,null,"Management & Close"]
[]
[null,"Results Tracker"]
[]
[null,"Use this form collaboratively with your foundation program officer during the Investment Development phase to agree upon targets and on the approach to measuring and tracking results over the life of the project. You will continue to use the Results Tracker during the Management & Close phase to document actuals and variance against targets as the project progresses. See the ‘Before you Begin’ tab for  links to additional guidance on using the tool."]
[]
[]
[null,null,"Investment Title",null,null,null,null,null,null,null,null,null,null,null,null,null,null,{"$f":"IF('Results Framework'!$R$10:$AN$10=\"\",\"\",'Results Framework'!$R$10:$AN$10)","v":"Southern focused coalition in support of HIV combined prevention and differentiated care"},null,null,null,null,null,null,null,null,null,null,null,null,null,null,null,null,null,null,null,null,null,null,null,null,null,null,null,null,null,null,null,null,null,null,null,null,null,null,null,null,null,null,null,null,null,null,null,null,null,null,null,null,null,null,null,null,null,null,null,null,null,null,null,null,null,null,null,null,null,null,null,null,null,null,null,null,null,null,null,null,null,null,null,null,null,null,null,null,null,null,null,null,null,null,null,{"$f":"R8","v":"Southern focused coalition in support of HIV combined prevention and differentiated care"}]
[]
[null,null,"Organization Legal Name",null,null,null,null,null,null,null,null,null,null,null,null,null,null,{"$f":"IF('Results Framework'!$R$12:$AN$12=\"\",\"\",'Results Framework'!$R$12:$AN$12)","v":"AVAC"},null,null,null,null,null,null,null,null,null,null,null,null,null,null,null,null,null,null,null,null,null,null,null,null,null,null,null,null,null,null,null,null,null,null,null,null,null,null,null,null,null,null,null,null,null,null,null,null,null,null,null,null,null,null,null,null,null,null,null,null,null,null,null,null,null,null,null,null,null,null,null,null,null,null,null,null,null,null,null,null,null,null,null,null,null,null,null,null,null,null,null,null,null,null,null,{"$f":"R10","v":"AVAC"}]
[]
[null,null,"Primary Contact",null,null,null,null,null,null,null,null,null,null,null,null,null,null,{"$f":"IF('Results Framework'!$R$14:$AN$14=\"\",\"\",'Results Framework'!$R$14:$AN$14)","v":"Emily Bass"},null,null,null,null,null,null,null,null,null,null,null,null,null,null,null,null,null,null,null,null,null,null,null,"Program Officer",null,null,null,null,null,null,null,null,null,null,null,null,{"$f":"IF('Results Framework'!$BC$14:$BY$14=\"\",\"\",'Results Framework'!$BC$14:$BY$14)","v":"Lorna Tumwebaze"},null,null,null,null,null,null,null,null,null,null,null,null,null,null,null,null,null,null,null,null,null,null,null,null,null,null,null,null,null,null,null,null,null,null,null,null,null,null,null,null,null,null,null,null,null,null,null,null,null,null,null,null,null,null,null,null,null,null,{"$f":"R12","v":"Emily Bass"}]
[]
[null,null,"Date Submitted",null,null,null,null,null,null,null,null,null,null,null,null,null,null,{"$f":"IF('Results Framework'!$R$16:$AN$16=\"\",\"\",'Results Framework'!$R$16:$AN$16)","v":"2017-08-28"},null,null,null,null,null,null,null,null,null,null,null,null,null,null,null,null,null,null,null,null,null,null,null,"Opportunity ID",null,null,null,null,null,null,null,null,null,null,null,null,{"$f":"IF('Results Framework'!$BC$16:$BY$16=\"\",\"\",'Results Framework'!$BC$16:$BY$16)","v":"OPP1174438"},null,null,null,null,null,null,null,null,null,null,null,null,null,null,null,null,null,null,null,null,null,null,null,null,null,null,null,null,null,null,null,null,null,null,null,null,null,null,null,null,null,null,null,null,null,null,null,null,null,null,null,null,null,null,null,null,null,null,null,{"$f":"R14","v":42975},{"$f":"BC14","v":"OPP1174438"}]
[]
[]
[]
[null,null,null,null,null,null,null,null,null,null,null,null,null,null,null,null,null,null,null,null,null,null,null,null,null,null,null,null,null,null,null,null,null,null,null,null,null,null,null,null,null,null,null,null,null,null,null,null,null,null,null,null,null,null,null,null,null,null,null,null,null,null,null,null,null,null,null,null,null,null,null,null,null,null,null,null,null,null,null,null,null,null,null,null,null,null,null,null,null,null,null,null,"Delete Period",null,null,null,"Delete Period",null,null,null,"Delete Period",null,null,"Add Another Period"]
[null,null,null,null,null,null,null,null,null,null,null,null,null,null,null,null,null,null,null,null,null,null,null,null,null,null,null,null,null,null,null,null,null,null,null,null,null,null,null,null,null,null,null,null,null,null,null,null,null,null,null,null,null,null,null,null,null,null,null,null,null,null,null,null,null,null,null,null,null,null,null,null,null,null,null,null,null,null,null,null,null,null,null,null,null,null,null,null,null,null,{"$f":"\"Reporting Period  \" & IFERROR(RIGHT(INDIRECT(ADDRESS(ROW(), COLUMN()-4)), LEN(INDIRECT(ADDRESS(ROW(), COLUMN()-4))) - FIND(\"  \", INDIRECT(ADDRESS(ROW(), COLUMN()-4))))+1, \"1\")","v":"Reporting Period  1"},null,null,null,{"$f":"\"Reporting Period  \" & IFERROR(RIGHT(INDIRECT(ADDRESS(ROW(), COLUMN()-4)), LEN(INDIRECT(ADDRESS(ROW(), COLUMN()-4))) - FIND(\"  \", INDIRECT(ADDRESS(ROW(), COLUMN()-4))))+1, \"1\")","v":"Reporting Period  2"},null,null,null,{"$f":"\"Reporting Period  \" & IFERROR(RIGHT(INDIRECT(ADDRESS(ROW(), COLUMN()-4)), LEN(INDIRECT(ADDRESS(ROW(), COLUMN()-4))) - FIND(\"  \", INDIRECT(ADDRESS(ROW(), COLUMN()-4))))+1, \"1\")","v":"Reporting Period  3"},null,null,null,null,"Cumulative"]
[null,null,null,null,null,null,null,null,null,null,null,null,null,null,null,null,null,null,null,null,null,null,null,null,null,null,null,null,null,null,null,null,null,null,null,null,null,null,null,null,null,null,null,null,null,null,null,null,null,null,null,null,null,null,null,null,null,null,null,null,null,null,null,null,null,null,null,null,null,null,null,null,null,null,null,null,null,null,null,null,null,null,null,null,null,null,null,null,null,null,"Reporting Start Date","2017-10-01",null,null,"Reporting Start Date","2018-10-01",null,null,"Reporting Start Date","2019-10-01",null,null,null,"Reporting Start Date","2017-10-01"]
[null,null,null,null,null,null,null,null,null,null,null,null,null,null,null,null,null,null,null,null,null,null,null,null,null,null,null,null,null,null,null,null,null,null,null,null,null,null,null,null,null,null,null,null,null,null,null,null,null,null,null,null,null,null,null,null,null,null,null,null,null,null,null,null,null,null,null,null,null,null,null,null,null,null,null,null,null,null,null,null,null,null,null,null,null,null,null,null,null,null,"Reporting End Date","2018-09-30",null,null,"Reporting End Date","2019-09-30",null,null,"Reporting End Date","2020-09-30",null,null,null,"Reporting End Date","2020-09-30"]
[null,null,null,null,null,null,null,null,null,null,null,null,null,null,null,null,null,null,null,null,null,null,null,null,null,null,null,null,null,null,null,null,null,null,null,null,null,null,null,null,null,null,null,null,null,null,null,null,null,null,null,null,null,null,null,null,null,null,null,null,null,null,null,null,null,null,null,null,null,null,null,null,null,null,null,null,null,null,null,null,null,null,null,null,null,null,null,null,null,null,"Duration","12 months",null,null,"Duration","12 months",null,null,"Duration","12 months",null,null,null,"Duration","36 Months"]
[null,"For additional tips, click on the header of each column.  Additional guidance for the tool can be found",null,null,null,null,null,null,null,null,null,null,null,null,null,null,null,null,null,null,null,null,null,null,null,null,null,null,null,null,null,null,null,null,null,null,null,null,null,null,null,null,null,null,null,null,null,null,null,null,null,"here"]
[null,"ID",null,null,null,null,null,null,null,null,null,null,null,"Outcome/Output",null,null,null,null,null,null,null,null,null,null,null,null,null,null,null,"Indicator(s)",null,null,null,null,null,null,null,null,null,"Data Sources \n(If Applicable)",null,null,null,null,null,null,null,null,null,"Baseline \n(If Applicable)",null,null,null,null,null,null,null,null,null,"Payment \nContingency",null,null,null,null,null,null,null,"Comments",null,null,null,null,null,null,null,null,null,null,null,null,null,null,null,null,null,null,null,null,null,null,"Targets/Milestones","Actual","Variance",null,"Targets/Milestones","Actual","Variance",null,"Targets/Milestones","Actual","Variance",null,null,"Targets/Milestones","Actual","Variance"]
["x","1",null,null,null,"-",null,null,null,"-",null,null,null,"Increaased adoption of policy and program approaches that strengthen combination preventoin, differentiated service delivery and other components of a sustainable, comprehensive and integrated HIV response in Malawi, Tanzania and Zimbabwe ",null,null,null,null,null,null,null,null,null,null,null,null,null,null,null,"Analysis of national policies, AIDS plans, PEPFAR COPs and quarterly performance data, GFATM concept notes and other documents relevant to natonal HIV response ",null,null,null,null,null,null,null,null,null,"National policies, AIDS plans, PEPFAR COPs and quarterly performance data, GFATM concept notes and other documents relevant to a national HIV response ",null,null,null,null,null,null,null,null,null,null,null,null,null,null,null,null,null,null,null,"¨",null,null,null,null,null,null,null,"Baseline analysis will be incorporated into country landscapes (1.2.1) ",null,null,null,null,null,null,null,null,null,null,null,null,null,null,null,null,null,null,null,null,null,null,"Three country-level policy and performance analyses (subsections of the country landscape)",null,null,null,"Updated country-level policy and performance analyses ",null,null,null,"Updated country-level policy and performance analyses ",null,null,null,null,null,null,null,null,null,{"$f":"N25","v":"Increaased adoption of policy and program approaches that strengthen combination preventoin, differentiated service delivery and other components of a sustainable, comprehensive and integrated HIV response in Malawi, Tanzania and Zimbabwe "},{"$f":"AD25","v":"Analysis of national policies, AIDS plans, PEPFAR COPs and quarterly performance data, GFATM concept notes and other documents relevant to natonal HIV response "},{"$f":"AN25","v":"National policies, AIDS plans, PEPFAR COPs and quarterly performance data, GFATM concept notes and other documents relevant to a national HIV response "},{"$f":"AX25","v":0},{"$f":"BP25","v":"Baseline analysis will be incorporated into country landscapes (1.2.1) "}]
["x","-",null,null,null,"1.1",null,null,null,"-",null,null,null,"Strengthened coalitions advocating for data-informed policy and program approaches to strengthen a comprehensive HIV response in Malawi, Tanzania and Zimbabw",null,null,null,null,null,null,null,null,null,null,null,null,null,null,null,"Annual COMPASS progress report ",null,null,null,null,null,null,null,null,null,"Annual COMPASS progress report ",null,null,null,null,null,null,null,null,null,null,null,null,null,null,null,null,null,null,null,"¨",null,null,null,null,null,null,null,null,null,null,null,null,null,null,null,null,null,null,null,null,null,null,null,null,null,null,null,null,null,null,"Annual COMPASS progres report completed ",null,null,null,"Annual COMPASS progress report completed",null,null,null,"Annual COMPASS progress report completed ",null,null,null,null,null,null,null,null,null,"Strengthened coalitions advocating for data-informed policy and program approaches to strengthen a comprehensive HIV response in Malawi, Tanzania and Zimbabw","Annual COMPASS progress report ","Annual COMPASS progress report ",0,0]
["x","-",null,null,null,"-",null,null,null,"1.1.1",null,null,null,"Coalitions focused on data informed advocacy for a comprehensive HIV response developed (Tanzania) and strengthened (Malawi and Zimbabwe) ",null,null,null,null,null,null,null,null,null,null,null,null,null,null,null,"# of coalitions with shared and intensive focus on a comprehensive HIV response ",null,null,null,null,null,null,null,null,null,"Coalition membership and structure documents (eg terms of reference, working groups, task forces, etc); coalition statements and positions",null,null,null,null,null,null,null,null,null,"Malawi and Zimbabwe coalitions in place but not formally structured; Tanzania coalition not yet in place",null,null,null,null,null,null,null,null,null,"¨",null,null,null,null,null,null,null,null,null,null,null,null,null,null,null,null,null,null,null,null,null,null,null,null,null,null,null,null,null,null,"Three country-level coalitions established",null,null,null,"Coalition strength and gap analysis incorporated into country strategies",null,null,null,"Coalition strength and gap analysis incorporated into country strategies ",null,null,null,null,null,null,null,null,null,"Coalitions focused on data informed advocacy for a comprehensive HIV response developed (Tanzania) and strengthened (Malawi and Zimbabwe) ","# of coalitions with shared and intensive focus on a comprehensive HIV response ","Coalition membership and structure documents (eg terms of reference, working groups, task forces, etc); coalition statements and positions","Malawi and Zimbabwe coalitions in place but not formally structured; Tanzania coalition not yet in place",0]
["x","-",null,null,null,"-",null,null,null,"1.1.2",null,null,null,"A COMPASS Africa Coalition-wide strategic framework inclusive of operating principles/framework structure ",null,null,null,null,null,null,null,null,null,null,null,null,null,null,null,"Completion of COMPASS Africa coalition-wide living strategy framework and structure ",null,null,null,null,null,null,null,null,null,"COMPASS Africa strategy and structure document ",null,null,null,null,null,null,null,null,null,null,null,null,null,null,null,null,null,null,null,"¨",null,null,null,null,null,null,null,null,null,null,null,null,null,null,null,null,null,null,null,null,null,null,null,null,null,null,null,null,null,null,"Completed strategy framework ",null,null,null,"Updated (as needed) strategy framework ",null,null,null,"Updated (as needed) strategy framework",null,null,null,null,null,null,null,null,null,"A COMPASS Africa Coalition-wide strategic framework inclusive of operating principles/framework structure ","Completion of COMPASS Africa coalition-wide living strategy framework and structure ","COMPASS Africa strategy and structure document ",0,0]
["x","-",null,null,null,"-",null,null,null,"1.1.3",null,null,null,"An Africa-based hub (PZAT, based in Zimbabwe) for MERL and administrative support for all COMPASS Africa activities regionally and internationally",null,null,null,null,null,null,null,null,null,null,null,null,null,null,null,"# of coalition-supportive resources developed by or housed at PZAT (data collection tools, training materials); # of requests from COMPASS and external partners (in years 2 and 3) for information, MERL tools and learnings and other support ",null,null,null,null,null,null,null,null,null,"Resource and MERL tool list; log of partner requests ",null,null,null,null,null,null,null,null,null,"No formal MERL structure generally or in Africa",null,null,null,null,null,null,null,null,null,"¨",null,null,null,null,null,null,null,null,null,null,null,null,null,null,null,null,null,null,null,null,null,null,null,null,null,null,null,null,null,null,"Completed development of (1) Baseline resource and tool list and (2) system for logging, meeting and tracking outcomes of partner requests for information and assistance ",null,null,null,"Updated resource list and summary of partner support provided",null,null,null,"Updated resource list and summary of partner support provided ",null,null,null,null,null,null,null,null,null,"An Africa-based hub (PZAT, based in Zimbabwe) for MERL and administrative support for all COMPASS Africa activities regionally and internationally","# of coalition-supportive resources developed by or housed at PZAT (data collection tools, training materials); # of requests from COMPASS and external partners (in years 2 and 3) for information, MERL tools and learnings and other support ","Resource and MERL tool list; log of partner requests ","No formal MERL structure generally or in Africa",0]
["x","-",null,null,null,"-",null,null,null,"1.1.4",null,null,null,"Three compehensive, adaptable country-level advocacy strategies inclusive of organizing principles, plans for \"quick wins\" and long-term campaigns, skills and tactical and content capacity goals",null,null,null,null,null,null,null,null,null,null,null,null,null,null,null,"# of comprehensive country-level advocacy plans ",null,null,null,null,null,null,null,null,null,"Country-level advocacy plans ",null,null,null,null,null,null,null,null,null,null,null,null,null,null,null,null,null,null,null,"¨",null,null,null,null,null,null,null,null,null,null,null,null,null,null,null,null,null,null,null,null,null,null,null,null,null,null,null,null,null,null,"Three plans (one each for Malawi, Tanzania and Zimbabwe) ",null,null,null,"Updated (as needed) country plans",null,null,null,"Updated (as needed) country plans ",null,null,null,null,null,null,null,null,null,"Three compehensive, adaptable country-level advocacy strategies inclusive of organizing principles, plans for \"quick wins\" and long-term campaigns, skills and tactical and content capacity goals","# of comprehensive country-level advocacy plans ","Country-level advocacy plans ",0,0]
["x","-",null,null,null,"-",null,null,null,"1.1.5",null,null,null,"Training plans developed and implemented in each country on topics such as using data for advocacy, tactical skills and results-cascade driven monitoring for impact",null,null,null,null,null,null,null,null,null,null,null,null,null,null,null,"# of training plans developed and/or implemented ",null,null,null,null,null,null,null,null,null,"training plans ",null,null,null,null,null,null,null,null,null,null,null,null,null,null,null,null,null,null,null,"¨",null,null,null,null,null,null,null,null,null,null,null,null,null,null,null,null,null,null,null,null,null,null,null,null,null,null,null,null,null,null,"At least two in-country trainings per year, including one for emerging coalition members ",null,null,null,"Training target TBD based on Year One outcomes",null,null,null,"Training target TBD based on Year Two outcomes ",null,null,null,null,null,null,null,null,null,"Training plans developed and implemented in each country on topics such as using data for advocacy, tactical skills and results-cascade driven monitoring for impact","# of training plans developed and/or implemented ","training plans ",0,0]
["x","-",null,null,null,"-",null,null,null,"1.1.6",null,null,null,"Outreach to and engagement of young people via country-specified mechanisms (such as coalition caucuses or working groups, tailored roles for existing but under-utilitzed coalition members, cultivation of champions) to increase participation, mentorship and sustainable leadership ",null,null,null,null,null,null,null,null,null,null,null,null,null,null,null,"Malawi and Zimbabwe: mapping of and outreach to young coalition members who play or could be newly engaged in active supporting and/or leadership roles in coalition activities; Tanzania: % of young participants in trainings (disaggregated by gender identity); % of those reached who remain involved with and/or take leadership roles in coalition activities ",null,null,null,null,null,null,null,null,null,"Targets and engagement plans for youth participation; Coalition meeting and training notes and participant lists, public statements that capture organizational and individual affiliations, records of delegations attending stakeholder meetings with advocacy targets and allies",null,null,null,null,null,null,null,null,null,null,null,null,null,null,null,null,null,null,null,"¨",null,null,null,null,null,null,null,null,null,null,null,null,null,null,null,null,null,null,null,null,null,null,null,null,null,null,null,null,null,null,"Target for youth participation - % increase in representation and breadth/depth of participation established by end of year 1 to serve as baseline for subsequent reporting periods ",null,null,null,"Target TBD based on Year One outcomes",null,null,null,"Target TBD based on Year Two outcomes ",null,null,null,null,null,null,null,null,null,"Outreach to and engagement of young people via country-specified mechanisms (such as coalition caucuses or working groups, tailored roles for existing but under-utilitzed coalition members, cultivation of champions) to increase participation, mentorship and sustainable leadership ","Malawi and Zimbabwe: mapping of and outreach to young coalition members who play or could be newly engaged in active supporting and/or leadership roles in coalition activities; Tanzania: % of young participants in trainings (disaggregated by gender identity); % of those reached who remain involved with and/or take leadership roles in coalition activities ","Targets and engagement plans for youth participation; Coalition meeting and training notes and participant lists, public statements that capture organizational and individual affiliations, records of delegations attending stakeholder meetings with advocacy targets and allies",0,0]
["x","-",null,null,null,"-",null,null,null,"1.1.7",null,null,null,"Increased coalition diversity (guided by country landscape) with a focus on integrating additional partners including under-represented groups, stakeholders outside of the health sector and advocates working in complementary fields (budget analysis, maternal chiild health, etc)",null,null,null,null,null,null,null,null,null,null,null,null,null,null,null,"Malawi and Zimbabwe: Diversification: # of new country partners playing technical and leadership roles roles, disaggregated by geographic location and thematic field. Strengthening: number of organizations and/or individuals that are actively involved in and/or take leadership roles in coalition activities; Tanzania: # Tanzanian CSOs and/or individuals organized around and leading a COMPASS-Africa-derived advocacy agenda ",null,null,null,null,null,null,null,null,null,"Living coalition landscape reflecting needs/gaps filled by strategic coalition growth; workplans associated with additional COMPASS partner subgrants and/or Advocacy Fellowships (Tanzania); coalition membership lists, meeting and training notes and participant lists, public statements that capture organizational and individual affiliations, records of delegations attending stakeholder meetings with advocacy targets and allies ",null,null,null,null,null,null,null,null,null,null,null,null,null,null,null,null,null,null,null,"¨",null,null,null,null,null,null,null,null,null,null,null,null,null,null,null,null,null,null,null,null,null,null,null,null,null,null,null,null,null,null,"Baseline achievement in Year 1 to be measured in Malawi and Zimbabwe in terms of changes in coalition membership and leadership, additional subgrants to in-country partners whose workplans and capacities fill gaps identified in country landscaping, with specific engagement with Alliance CLOs; and, in Tanzania, in terms of start-up grants to civil society organizations and/or Advocacy Fellowships awarded with specific engagement with Alliance CLO ",null,null,null,"# TBD subgrants to COMPASS coalition lead organizations in Tanzania based on work from Year 1; additional targets TBD based on Year 1 outcomes ",null,null,null,"Targets TBD based on Year 2 outcomes ",null,null,null,null,null,null,null,null,null,"Increased coalition diversity (guided by country landscape) with a focus on integrating additional partners including under-represented groups, stakeholders outside of the health sector and advocates working in complementary fields (budget analysis, maternal chiild health, etc)","Malawi and Zimbabwe: Diversification: # of new country partners playing technical and leadership roles roles, disaggregated by geographic location and thematic field. Strengthening: number of organizations and/or individuals that are actively involved in and/or take leadership roles in coalition activities; Tanzania: # Tanzanian CSOs and/or individuals organized around and leading a COMPASS-Africa-derived advocacy agenda ","Living coalition landscape reflecting needs/gaps filled by strategic coalition growth; workplans associated with additional COMPASS partner subgrants and/or Advocacy Fellowships (Tanzania); coalition membership lists, meeting and training notes and participant lists, public statements that capture organizational and individual affiliations, records of delegations attending stakeholder meetings with advocacy targets and allies ",0,0]
["x","-",null,null,null,"1.2",null,null,null,"-",null,null,null,"Inreased use of evidence and policy analysis/ideas by decision makers to guide resource allocation and design, implementation and evaluation of programs in Malawi, Tanzania and Zimbabwe ",null,null,null,null,null,null,null,null,null,null,null,null,null,null,null,"% of barriers identified that have been addressed based on a COMPASS-developed scale (\"solved,\" \"progress but not solved,\" \"not solved\") ",null,null,null,null,null,null,null,null,null,"Progress scale and analytic methodology; annual country updates in landscape analyses ",null,null,null,null,null,null,null,null,null,null,null,null,null,null,null,null,null,null,null,"¨",null,null,null,null,null,null,null,null,null,null,null,null,null,null,null,null,null,null,null,null,null,null,null,null,null,null,null,null,null,null,"Progress scale and analytic methodology developed and baseline for % of barriers addressed established by end of year 1 ",null,null,null,null,null,null,null,null,null,null,null,null,null,null,null,null,null,"Inreased use of evidence and policy analysis/ideas by decision makers to guide resource allocation and design, implementation and evaluation of programs in Malawi, Tanzania and Zimbabwe ","% of barriers identified that have been addressed based on a COMPASS-developed scale (\"solved,\" \"progress but not solved,\" \"not solved\") ","Progress scale and analytic methodology; annual country updates in landscape analyses ",0,0]
["x","-",null,null,null,"-",null,null,null,"1.2.1",null,null,null,"A country-level landscape of policies, politics and partners developed by COMPASS coalition members in a \"living document\" format that captures and prioritizes specific barriers to policy and implementation ",null,null,null,null,null,null,null,null,null,null,null,null,null,null,null,"# of country-level landscapes that identify specific policy and implementation barriers standing in the way of comprehensive, integrated HIV programming ",null,null,null,null,null,null,null,null,null,"Country-level landscapes ",null,null,null,null,null,null,null,null,null,null,null,null,null,null,null,null,null,null,null,"¨",null,null,null,null,null,null,null,null,null,null,null,null,null,null,null,null,null,null,null,null,null,null,null,null,null,null,null,null,null,null,"Three country-level landscapes ",null,null,null,"Landscapes maintained and updated for accuracy and action",null,null,null,"Landscapes maintained and updated for accuracy and action ",null,null,null,null,null,null,null,null,null,"A country-level landscape of policies, politics and partners developed by COMPASS coalition members in a \"living document\" format that captures and prioritizes specific barriers to policy and implementation ","# of country-level landscapes that identify specific policy and implementation barriers standing in the way of comprehensive, integrated HIV programming ","Country-level landscapes ",0,0]
["x","-",null,null,null,"-",null,null,null,"1.2.2",null,null,null,"At least two barriers identfied by country landscape analysis addressed via data-informed campaigns per country per year (campaigns defined and tracked via a common COMPASS tool that includes strategic objective, targets and a flexible set of tactics ",null,null,null,null,null,null,null,null,null,null,null,null,null,null,null,"# of annually updated landscapes reflecting % of barriers whose status have changed positively ",null,null,null,null,null,null,null,null,null,"Country-level landscape section on barriers and progress ",null,null,null,null,null,null,null,null,null,null,null,null,null,null,null,null,null,null,null,"¨",null,null,null,null,null,null,null,null,null,null,null,null,null,null,null,null,null,null,null,null,null,null,null,null,null,null,null,null,null,null,"Three country-level landscape sections reporting on barriers and progress ",null,null,null,"Three country-level landscape sections reporting on barriers and progress",null,null,null,"Three country-level landscape sections reporting on barriers and progress",null,null,null,null,null,null,null,null,null,"At least two barriers identfied by country landscape analysis addressed via data-informed campaigns per country per year (campaigns defined and tracked via a common COMPASS tool that includes strategic objective, targets and a flexible set of tactics ","# of annually updated landscapes reflecting % of barriers whose status have changed positively ","Country-level landscape section on barriers and progress ",0,0]
["x","-",null,null,null,"-",null,null,null,"1.2.3",null,null,null,"At least two cross-cutting issue  analyses (eg focusing on sexual and reproductive health and rights and key populations issues) ",null,null,null,null,null,null,null,null,null,null,null,null,null,null,null,"# of issue-specific analyses developed ",null,null,null,null,null,null,null,null,null,"Issue-specific analyses ",null,null,null,null,null,null,null,null,null,null,null,null,null,null,null,null,null,null,null,"¨",null,null,null,null,null,null,null,null,null,null,null,null,null,null,null,null,null,null,null,null,null,null,null,null,null,null,null,null,null,null,"At least two issue-specific analyses ",null,null,null,"Issue-specific analyses updated and expanded (eg to other topics) as needed based on Year 1",null,null,null,"Issue-specific analyses updated and expanded as needed based on Year 2 ",null,null,null,null,null,null,null,null,null,"At least two cross-cutting issue  analyses (eg focusing on sexual and reproductive health and rights and key populations issues) ","# of issue-specific analyses developed ","Issue-specific analyses ",0,0]
["x","-",null,null,null,"-",null,null,null,"1.2.4",null,null,null,"At least two regional or international-level barriers addressed via cross-cutting regional and/or international campaigns focused on decision makers at national and funder/headquarter levels ",null,null,null,null,null,null,null,null,null,null,null,null,null,null,null,"Annually-updated COMPASS strategic framework reflecting % of barriers at regional or international level whose status has positively changed ",null,null,null,null,null,null,null,null,null,"Annually updated COMPASS strategic framework ",null,null,null,null,null,null,null,null,null,null,null,null,null,null,null,null,null,null,null,"¨",null,null,null,null,null,null,null,null,null,null,null,null,null,null,null,null,null,null,null,null,null,null,null,null,null,null,null,null,null,null,"Annual COMPASS progress report completed ",null,null,null,"Annual COMPASS progress report completed ",null,null,null,"Annual COMPASS progress report completed ",null,null,null,null,null,null,null,null,null,"At least two regional or international-level barriers addressed via cross-cutting regional and/or international campaigns focused on decision makers at national and funder/headquarter levels ","Annually-updated COMPASS strategic framework reflecting % of barriers at regional or international level whose status has positively changed ","Annually updated COMPASS strategic framework ",0,0]
["x","-",null,null,null,"-",null,null,null,"1.2.5",null,null,null,"Gaps in capacity for data-driven advocacy addressed via a Data for Advocacy distance learning course ",null,null,null,null,null,null,null,null,null,null,null,null,null,null,null,"# of modules of distance learning course developed, piloted and launched ",null,null,null,null,null,null,null,null,null,"Data for Advocacy distance learning training modules ",null,null,null,null,null,null,null,null,null,null,null,null,null,null,null,null,null,null,null,"¨",null,null,null,null,null,null,null,null,null,null,null,null,null,null,null,null,null,null,null,null,null,null,null,null,null,null,null,null,null,null,"At least one complete  module and full course in development ",null,null,null,"Full course completed; first cohort of learners completed course, providing feedback for further refinement ",null,null,null,"Full online course available, continually refined based on learner feedback ",null,null,null,null,null,null,null,null,null,"Gaps in capacity for data-driven advocacy addressed via a Data for Advocacy distance learning course ","# of modules of distance learning course developed, piloted and launched ","Data for Advocacy distance learning training modules ",0,0]
["x","-",null,null,null,"-",null,null,null,"1.2.6",null,null,null,"Development two databases to fill gaps in data availability and accessibility at country and global level (PEPFAR indicators, GFATM data) ",null,null,null,null,null,null,null,null,null,null,null,null,null,null,null,"# of databases developed and made available ",null,null,null,null,null,null,null,null,null,"Databases ",null,null,null,null,null,null,null,null,null,null,null,null,null,null,null,null,null,null,null,"¨",null,null,null,null,null,null,null,null,null,null,null,null,null,null,null,null,null,null,null,null,null,null,null,null,null,null,null,null,null,null,"PEPFAR MER Database launch by end of Year One, with beta testing by COMPASS member organizations; initial meetings with GFATM to evaluate usability of deeper data than currently evaluated[ Development plan and timeline updated and finalized",null,null,null,"Refinement and updating of PEPFAR MER Database; scoping work complete regarding data from GFATM available for database ",null,null,null,"Ongoing maintenance and refinement of PEPFAR MER database, GFATM database launched and beta tested ",null,null,null,null,null,null,null,null,null,"Development two databases to fill gaps in data availability and accessibility at country and global level (PEPFAR indicators, GFATM data) ","# of databases developed and made available ","Databases ",0,0]
["x","-",null,null,null,"-",null,null,null,"1.2.7",null,null,null,"A MERL system that ensures that country-level advocacy strategies, impacts and best practices are better understood, documented and disseminated ",null,null,null,null,null,null,null,null,null,null,null,null,null,null,null,"Status of MERL development including development of MERL management plan (MMP), roll out and continuous training of partners",null,null,null,null,null,null,null,null,null,"MMP, training materials and pre- and post-training surveys ",null,null,null,null,null,null,null,null,null,null,null,null,null,null,null,null,null,null,null,"¨",null,null,null,null,null,null,null,null,null,null,null,null,null,null,null,null,null,null,null,null,null,null,null,null,null,null,null,null,null,null,"A MERL system that is designed and calibrated ",null,null,null,"MERL system is continuously improved to serve the needs of the coalition ",null,null,null,"MERL system is continuously updated to serve the needs of the coalition ",null,null,null,null,null,null,null,null,null,"A MERL system that ensures that country-level advocacy strategies, impacts and best practices are better understood, documented and disseminated ","Status of MERL development including development of MERL management plan (MMP), roll out and continuous training of partners","MMP, training materials and pre- and post-training surveys ",0,0]
["x","2",null,null,null,"-",null,null,null,"-",null,null,null,"Increased resource commitments for a comprehensive HIV response by USG and other major funders ",null,null,null,null,null,null,null,null,null,null,null,null,null,null,null,"Resource commitments by USG and other major funders over the lifespan of the project ",null,null,null,null,null,null,null,null,null,"Global HIV investment resource tracking documents from UNAIDS, PEPFAR, GFATM, donor countries  and project",null,null,null,null,null,null,null,null,null,null,null,null,null,null,null,null,null,null,null,"¨",null,null,null,null,null,null,null,null,null,null,null,null,null,null,null,null,null,null,null,null,null,null,null,null,null,null,null,null,null,null,"Global resource envelope and gap tracked for COMPASS partners",null,null,null,"Global resource envelope and gap updated ",null,null,null,"Global resource envelope and gap ",null,null,null,null,null,null,null,null,null,"Increased resource commitments for a comprehensive HIV response by USG and other major funders ","Resource commitments by USG and other major funders over the lifespan of the project ","Global HIV investment resource tracking documents from UNAIDS, PEPFAR, GFATM, donor countries  and project",0,0]
["x","-",null,null,null,"2.1",null,null,null,"-",null,null,null,"Increased support for and/or engagement with COMPASS Africa's priorities regarding funding for a comprehensive HIV response by global leadership",null,null,null,null,null,null,null,null,null,null,null,null,null,null,null,"# of statements by UNAIDS and other public leadership that align with COMPASS Africa funding needs analysis ",null,null,null,null,null,null,null,null,null,"UNAIDS GARPR and World AIDS Day Statements; statements from GFATM and PEPFAR leadership",null,null,null,null,null,null,null,null,null,null,null,null,null,null,null,null,null,null,null,"¨",null,null,null,null,null,null,null,null,null,null,null,null,null,null,null,null,null,null,null,null,null,null,null,null,null,null,null,null,null,null,"Summary of global leadership positions and shifts related to funding (included in COMPASS Strategic Framework) ",null,null,null,"Updated summary of global leadership positions and shifts ",null,null,null,"Updated summary of global leadership position and shifts ",null,null,null,null,null,null,null,null,null,"Increased support for and/or engagement with COMPASS Africa's priorities regarding funding for a comprehensive HIV response by global leadership","# of statements by UNAIDS and other public leadership that align with COMPASS Africa funding needs analysis ","UNAIDS GARPR and World AIDS Day Statements; statements from GFATM and PEPFAR leadership",0,0]
["x","-",null,null,null,"-",null,null,null,"2.1.1",null,null,null,"Headquarters-level advocacy in Washington, DC, to build support for maintaining and/or expanding existing USG funding level ",null,null,null,null,null,null,null,null,null,null,null,null,null,null,null,"# of Hill briefings, private meetings with key congressional and State Department allies, \"reverse co-dels\" bringing advocates from key affected groups in Malawi, Tanzania and Zimbabwe to meet with members of Congress ",null,null,null,null,null,null,null,null,null,"Meeting notes and records, co-del participant lists",null,null,null,null,null,null,null,null,null,null,null,null,null,null,null,null,null,null,null,"¨",null,null,null,null,null,null,null,null,null,null,null,null,null,null,null,null,null,null,null,null,null,null,null,null,null,null,null,null,null,null,"TBD based on Year 1 Achievement ",null,null,null,"TBD ",null,null,null,"TBD ",null,null,null,null,null,null,null,null,null,"Headquarters-level advocacy in Washington, DC, to build support for maintaining and/or expanding existing USG funding level ","# of Hill briefings, private meetings with key congressional and State Department allies, \"reverse co-dels\" bringing advocates from key affected groups in Malawi, Tanzania and Zimbabwe to meet with members of Congress ","Meeting notes and records, co-del participant lists",0,0]
["x","-",null,null,null,"-",null,null,null,"2.1.2",null,null,null,"Secretariat-level advocacy with UNAIDS and GFATM to build support for COMPASS-articulated goals related to overall and GFATM-specific resource envelope",null,null,null,null,null,null,null,null,null,null,null,null,null,null,null,"# of briefings, private meetings with UNAIDS and GFAM leadership ",null,null,null,null,null,null,null,null,null,"Meeting notes and records ",null,null,null,null,null,null,null,null,null,null,null,null,null,null,null,null,null,null,null,"¨",null,null,null,null,null,null,null,null,null,null,null,null,null,null,null,null,null,null,null,null,null,null,null,null,null,null,null,null,null,null,"TBD based on Year 1 Achievement ",null,null,null,"TBD ",null,null,null,"TBD ",null,null,null,null,null,null,null,null,null,"Secretariat-level advocacy with UNAIDS and GFATM to build support for COMPASS-articulated goals related to overall and GFATM-specific resource envelope","# of briefings, private meetings with UNAIDS and GFAM leadership ","Meeting notes and records ",0,0]
["x","-",null,null,null,"-",null,null,null,"2.1.3",null,null,null,null,null,null,null,null,null,null,null,null,null,null,null,null,null,null,null,null,null,null,null,null,null,null,null,null,null,null,null,null,null,null,null,null,null,null,null,null,null,null,null,null,null,null,null,null,null,"¨",null,null,null,null,null,null,null,null,null,null,null,null,null,null,null,null,null,null,null,null,null,null,null,null,null,null,null,null,null,null,null,null,null,null,null,null,null,null,null,null,null,null,null,null,null,null,null,null,0,0,0,0,0]
["x","3",null,null,null,"-",null,null,null,"-",null,null,null,"Increased national government investments (inclusive of financial, human resource and infrastructure) in the HIV response in Malawi, Zimbabwe and Tanzania ",null,null,null,null,null,null,null,null,null,null,null,null,null,null,null,"% increase in national government investments ",null,null,null,null,null,null,null,null,null,"Analysis of national health budgets and other documentation of investments eg in human resources for health, commitments to new financing mechanisms such as national AIDS funds or levies ",null,null,null,null,null,null,null,null,null,null,null,null,null,null,null,null,null,null,null,"¨",null,null,null,null,null,null,null,null,null,null,null,null,null,null,null,null,null,null,null,null,null,null,null,null,null,null,null,null,null,null,"Status of national government investments at baseline captured in country landscapes ",null,null,null,"Updated status of national government investments included in country landscapes ",null,null,null,"Updated status of national government investments included in country landscapes ",null,null,null,null,null,null,null,null,null,"Increased national government investments (inclusive of financial, human resource and infrastructure) in the HIV response in Malawi, Zimbabwe and Tanzania ","% increase in national government investments ","Analysis of national health budgets and other documentation of investments eg in human resources for health, commitments to new financing mechanisms such as national AIDS funds or levies ",0,0]
["x","-",null,null,null,"3.1",null,null,null,"-",null,null,null,"Increased advocacy capacity among key influencers in support of HIV and health sector financing in Malawi, Tanzania and Zimbabwe ",null,null,null,null,null,null,null,null,null,null,null,null,null,null,null,"% of budget and financing related barriers (as identified in country landscapes) addressed over reporting cycle as the result of strengthened advocacy by key partners ",null,null,null,null,null,null,null,null,null,"Country-level landscape section on barriers and progress ",null,null,null,null,null,null,null,null,null,null,null,null,null,null,null,null,null,null,null,"¨",null,null,null,null,null,null,null,null,null,null,null,null,null,null,null,null,null,null,null,null,null,null,null,null,null,null,null,null,null,null,"Baseline for % of barriers addressed established by end of Year 1",null,null,null,"Target TBD based on Year 1 results ",null,null,null,"Target TBD ",null,null,null,null,null,null,null,null,null,"Increased advocacy capacity among key influencers in support of HIV and health sector financing in Malawi, Tanzania and Zimbabwe ","% of budget and financing related barriers (as identified in country landscapes) addressed over reporting cycle as the result of strengthened advocacy by key partners ","Country-level landscape section on barriers and progress ",0,0]
["x","-",null,null,null,"-",null,null,null,"3.1.1",null,null,null,"COMPASS Africa coalition member capacity for budget advocacy increased via country-specific approaches (training, mentorship, etc) ",null,null,null,null,null,null,null,null,null,null,null,null,null,null,null,"Training, mentorship and/or coalition diversificaton improve depth and breadth of COMPASS coalition engagement with budget advocacy   ",null,null,null,null,null,null,null,null,null,"Training materials, coalition member surveys and membership documents ",null,null,null,null,null,null,null,null,null,null,null,null,null,null,null,null,null,null,null,"¨",null,null,null,null,null,null,null,null,null,null,null,null,null,null,null,null,null,null,null,null,null,null,null,null,null,null,null,null,null,null,"At least one training or mentorship relationship established in each country to build capacity for budget related advocacy ",null,null,null,"Target TBD based on Year 1 results ",null,null,null,"Target TBD based on Year 2 results ",null,null,null,null,null,null,null,null,null,"COMPASS Africa coalition member capacity for budget advocacy increased via country-specific approaches (training, mentorship, etc) ","Training, mentorship and/or coalition diversificaton improve depth and breadth of COMPASS coalition engagement with budget advocacy   ","Training materials, coalition member surveys and membership documents ",0,0]
["x","-",null,null,null,"-",null,null,null,"3.1.2",null,null,null,"Allies in private sector, budget and finance ministries and non-HIV health fields receive tailored briefings drawing on country landscape analyses that present advocacy case and strategy for increasing national investments for HIV and health overall ",null,null,null,null,null,null,null,null,null,null,null,null,null,null,null,"# of briefings and/or one-on-one meetings with targets and allies ",null,null,null,null,null,null,null,null,null,"Meeting notes, participant lists, outcomes summaries and records of subsequent actions taken ",null,null,null,null,null,null,null,null,null,null,null,null,null,null,null,null,null,null,null,"¨",null,null,null,null,null,null,null,null,null,null,null,null,null,null,null,null,null,null,null,null,null,null,null,null,null,null,null,null,null,null,"Baseline to be established during Year 1",null,null,null,"Target TBD based on Year 1 results ",null,null,null,"Target TBD based on Year 2 results ",null,null,null,null,null,null,null,null,null,"Allies in private sector, budget and finance ministries and non-HIV health fields receive tailored briefings drawing on country landscape analyses that present advocacy case and strategy for increasing national investments for HIV and health overall ","# of briefings and/or one-on-one meetings with targets and allies ","Meeting notes, participant lists, outcomes summaries and records of subsequent actions taken ",0,0]
[]
[]
[]
[]
[null,null,null,"Grantee / Vendor Comments"]
[]
[null,null,"Use this section to provide comments and/or additional context regarding the outcomes/outputs above. Be sure to reference the outcome(s)/output(s) referred to in the comment.",null,null,null,null,null,null,null,null,null,null,null,null,null,null,null,null,null,null,null,null,null,null,null,null,null,null,null,null,null,null,null,null,null,null,null,null,null,null,null,null,null,null,null,null,null,null,null,null,null,null,null,null,null,null,null,null,null,null,null,null,null,null,null,null,null,null,null,null,null,null,null,null,null,null,null,null,null,null,null,null,null,null,null,null,null,null,null,null,null,null,null,null,null,null,null,null,null,null,null,null,null,null,null,null,null,null,null,null,null,null,null,null,null,{"$f":"AO57","v":0},"This is the placeholder for wrapping the Grantee Vendor Comments section"]
[]
[]
[null,"Privacy and Non-confidentiality Notice"]
[null,"The Foundation is required by the IRS to publish a list of its grants. We may also provide a general description of our grants and contracts on our web sites, in press releases, and in other marketing materials. Subject to the foundation’s Privacy Policy, the foundation may also share information you provide to us (either orally or in writing) with third parties, including external reviewers, key partners and co-funders. This document is subject to the foundation’s Terms of Use.",null,null,null,null,null,null,null,null,null,null,null,null,null,null,null,null,null,null,null,null,null,null,null,null,null,null,null,null,null,null,null,null,null,null,null,null,null,null,null,null,null,null,null,null,null,null,null,null,null,null,null,null,null,null,null,null,null,null,null,null,null,null,null,null,null,null,null,null,null,null,null,null,null,null,null,null,null,null,null,null,null,null,null,null,null,null,null,null,null,null,null,null,null,null,null,null,null,null,null,null,null,null,null,null,null,null,null,null,null,null,null,null,null,null,null,null,"Privacy  and Comments"]
[null,"Privacy Policy"]
[null,"Terms of Use"]

{"sheet":"Results Tracker - Previous","index":3,"n_rows":38,"n_cols":111,"rows_kept":38,"cut":false,"hidden":false,"merged":[[0,80,0,88],[1,1,1,88],[6,1,6,77],[0,1,0,19],[0,21,0,39],[0,41,0,59],[0,61,0,79],[2,1,2,88],[3,1,3,88],[4,1,4,88],[5,1,5,23],[5,24,5,27],[7,2,7,13],[7,14,7,15],[7,17,7,76],[9,2,9,13],[9,14,9,15],[9,17,9,76],[18,95,18,97],[11,2,11,15],[11,17,11,39],[11,41,11,52],[11,54,11,76],[13,2,13,15],[13,17,13,39],[13,41,13,52],[13,54,13,76],[15,2,15,15],[16,1,16,77],[17,1,17,88],[18,1,18,88],[18,90,18,92],[24,59,24,66],[23,59,23,66],[23,67,23,88],[19,1,19,88],[21,1,21,8],[21,10,21,23],[22,1,22,50],[22,51,22,54],[23,1,23,12],[23,13,23,28],[23,29,23,38],[23,39,23,48],[23,49,23,58],[35,1,35,77],[36,1,36,6],[37,1,37,6],[24,1,24,4],[24,5,24,8],[24,9,24,12],[24,13,24,28],[24,29,24,38],[24,39,24,48],[24,49,24,58],[24,67,24,88],[26,1,26,8],[26,10,26,23],[26,25,26,32],[31,2,31,38],[31,40,31,82]]}
[null,"Concept",null,null,null,null,null,null,null,null,null,null,null,null,null,null,null,null,null,null,null,"Pre-Proposal",null,null,null,null,null,null,null,null,null,null,null,null,null,null,null,null,null,null,null,"Investment Development",null,null,null,null,null,null,null,null,null,null,null,null,null,null,null,null,null,null,null,"Management & Close"]
[]
[null,"Results Tracker"]
[]
[null,"Use this form collaboratively with your foundation program officer during the Investment Development phase to agree upon targets and on the approach to measuring and tracking results over the life of the project. You will continue to use the Results Tracker during the Management & Close phase to document actuals and variance against targets as the project progresses. See the ‘Before you Begin’ tab for  links to additional guidance on using the tool."]
[]
[]
[null,null,"Investment Title",null,null,null,null,null,null,null,null,null,null,null,null,null,null,{"$f":"IF('Results Framework'!$R$10:$AN$10=\"\",\"\",'Results Framework'!$R$10:$AN$10)","v":"Southern focused coalition in support of HIV combined prevention and differentiated care"},null,null,null,null,null,null,null,null,null,null,null,null,null,null,null,null,null,null,null,null,null,null,null,null,null,null,null,null,null,null,null,null,null,null,null,null,null,null,null,null,null,null,null,null,null,null,null,null,null,null,null,null,null,null,null,null,null,null,null,null,null,null,null,null,null,null,null,null,null,null,null,null,null,null,null,null,null,null,null,null,null,null,null,null,null,null,null,{"$f":"R8","v":"Southern focused coalition in support of HIV combined prevention and differentiated care"}]
[]
[null,null,"Organization Legal Name",null,null,null,null,null,null,null,null,null,null,null,null,null,null,{"$f":"IF('Results Framework'!$R$12:$AN$12=\"\",\"\",'Results Framework'!$R$12:$AN$12)","v":"AVAC"},null,null,null,null,null,null,null,null,null,null,null,null,null,null,null,null,null,null,null,null,null,null,null,null,null,null,null,null,null,null,null,null,null,null,null,null,null,null,null,null,null,null,null,null,null,null,null,null,null,null,null,null,null,null,null,null,null,null,null,null,null,null,null,null,null,null,null,null,null,null,null,null,null,null,null,null,null,null,null,null,null,null,null,null,null,null,null,{"$f":"R10","v":"AVAC"}]
[]
[null,null,"Primary Contact",null,null,null,null,null,null,null,null,null,null,null,null,null,null,{"$f":"IF('Results Framework'!$R$14:$AN$14=\"\",\"\",'Results Framework'!$R$14:$AN$14)","v":"Emily Bass"},null,null,null,null,null,null,null,null,null,null,null,null,null,null,null,null,null,null,null,null,null,null,null,"Program Officer",null,null,null,null,null,null,null,null,null,null,null,null,{"$f":"IF('Results Framework'!$BC$14:$BY$14=\"\",\"\",'Results Framework'!$BC$14:$BY$14)","v":"Lorna Tumwebaze"},null,null,null,null,null,null,null,null,null,null,null,null,null,null,null,null,null,null,null,null,null,null,null,null,null,null,null,null,null,null,null,null,null,null,null,null,null,null,null,null,null,null,null,null,null,null,null,null,null,null,{"$f":"R12","v":"Emily Bass"}]
[]
[null,null,"Date Submitted",null,null,null,null,null,null,null,null,null,null,null,null,null,null,{"$f":"IF('Results Framework'!$R$16:$AN$16=\"\",\"\",'Results Framework'!$R$16:$AN$16)","v":"2017-08-28"},null,null,null,null,null,null,null,null,null,null,null,null,null,null,null,null,null,null,null,null,null,null,null,"Opportunity ID",null,null,null,null,null,null,null,null,null,null,null,null,{"$f":"IF('Results Framework'!$BC$16:$BY$16=\"\",\"\",'Results Framework'!$BC$16:$BY$16)","v":"OPP1174438"},null,null,null,null,null,null,null,null,null,null,null,null,null,null,null,null,null,null,null,null,null,null,null,null,null,null,null,null,null,null,null,null,null,null,null,null,null,null,null,null,null,null,null,null,null,null,null,null,null,null,null,{"$f":"R14","v":42975},{"$f":"BC14","v":"OPP1174438"}]
[]
[]
[]
[null,null,null,null,null,null,null,null,null,null,null,null,null,null,null,null,null,null,null,null,null,null,null,null,null,null,null,null,null,null,null,null,null,null,null,null,null,null,null,null,null,null,null,null,null,null,null,null,null,null,null,null,null,null,null,null,null,null,null,null,null,null,null,null,null,null,null,null,null,null,null,null,null,null,null,null,null,null,null,null,null,null,null,null,null,null,null,null,null,null,null,null,"Delete Period",null,null,"Add Another Period"]
[null,null,null,null,null,null,null,null,null,null,null,null,null,null,null,null,null,null,null,null,null,null,null,null,null,null,null,null,null,null,null,null,null,null,null,null,null,null,null,null,null,null,null,null,null,null,null,null,null,null,null,null,null,null,null,null,null,null,null,null,null,null,null,null,null,null,null,null,null,null,null,null,null,null,null,null,null,null,null,null,null,null,null,null,null,null,null,null,null,null,{"$f":"\"Reporting Period  \" & IFERROR(RIGHT(INDIRECT(ADDRESS(ROW(), COLUMN()-4)), LEN(INDIRECT(ADDRESS(ROW(), COLUMN()-4))) - FIND(\"  \", INDIRECT(ADDRESS(ROW(), COLUMN()-4))))+1, \"1\")","v":"Reporting Period  1"},null,null,null,null,"Cumulative"]
[null,null,null,null,null,null,null,null,null,null,null,null,null,null,null,null,null,null,null,null,null,null,null,null,null,null,null,null,null,null,null,null,null,null,null,null,null,null,null,null,null,null,null,null,null,null,null,null,null,null,null,null,null,null,null,null,null,null,null,null,null,null,null,null,null,null,null,null,null,null,null,null,null,null,null,null,null,null,null,null,null,null,null,null,null,null,null,null,null,null,"Reporting Start Date","DD Month YYYY",null,null,null,"Reporting Start Date","DD Month YYYY"]
[null,null,null,null,null,null,null,null,null,null,null,null,null,null,null,null,null,null,null,null,null,null,null,null,null,null,null,null,null,null,null,null,null,null,null,null,null,null,null,null,null,null,null,null,null,null,null,null,null,null,null,null,null,null,null,null,null,null,null,null,null,null,null,null,null,null,null,null,null,null,null,null,null,null,null,null,null,null,null,null,null,null,null,null,null,null,null,null,null,null,"Reporting End Date","DD Month YYYY",null,null,null,"Reporting End Date","DD Month YYYY"]
[null,null,null,null,null,null,null,null,null,null,null,null,null,null,null,null,null,null,null,null,null,null,null,null,null,null,null,null,null,null,null,null,null,null,null,null,null,null,null,null,null,null,null,null,null,null,null,null,null,null,null,null,null,null,null,null,null,null,null,null,null,null,null,null,null,null,null,null,null,null,null,null,null,null,null,null,null,null,null,null,null,null,null,null,null,null,null,null,null,null,"Duration","XX Months",null,null,null,"Duration","XX Months"]
[null,"For additional tips, click on the header of each column.  Additional guidance for the tool can be found",null,null,null,null,null,null,null,null,null,null,null,null,null,null,null,null,null,null,null,null,null,null,null,null,null,null,null,null,null,null,null,null,null,null,null,null,null,null,null,null,null,null,null,null,null,null,null,null,null,"here"]
[null,"ID",null,null,null,null,null,null,null,null,null,null,null,"Outcome/Output",null,null,null,null,null,null,null,null,null,null,null,null,null,null,null,"Indicator(s)",null,null,null,null,null,null,null,null,null,"Data Sources \n(If Applicable)",null,null,null,null,null,null,null,null,null,"Baseline \n(If Applicable)",null,null,null,null,null,null,null,null,null,"Payment \nContingency",null,null,null,null,null,null,null,"Comments",null,null,null,null,null,null,null,null,null,null,null,null,null,null,null,null,null,null,null,null,null,null,"Targets/Milestones","Actual","Variance",null,null,"Targets/Milestones","Actual","Variance"]
[null,"-",null,null,null,"-",null,null,null,"-",null,null,null,null,null,null,null,null,null,null,null,null,null,null,null,null,null,null,null,null,null,null,null,null,null,null,null,null,null,null,null,null,null,null,null,null,null,null,null,null,null,null,null,null,null,null,null,null,null,"¨",null,null,null,null,null,null,null,null,null,null,null,null,null,null,null,null,null,null,null,null,null,null,null,null,null,null,null,null,null,null,null,null,null,null,null,null,null,null,null,null,{"$f":"N25","v":0},{"$f":"AD25","v":0},{"$f":"AN25","v":0},{"$f":"AX25","v":0},{"$f":"BP25","v":0}]
[]
[]
[]
[]
[null,null,null,"Grantee / Vendor Comments"]
[]
[null,null,"Use this section to provide comments and/or additional context regarding the outcomes/outputs above. Be sure to reference the outcome(s)/output(s) referred to in the comment.",null,null,null,null,null,null,null,null,null,null,null,null,null,null,null,null,null,null,null,null,null,null,null,null,null,null,null,null,null,null,null,null,null,null,null,null,null,null,null,null,null,null,null,null,null,null,null,null,null,null,null,null,null,null,null,null,null,null,null,null,null,null,null,null,null,null,null,null,null,null,null,null,null,null,null,null,null,null,null,null,null,null,null,null,null,null,null,null,null,null,null,null,null,null,null,null,null,null,null,null,null,null,null,null,null,{"$f":"AO32","v":0},"This is the placeholder for wrapping the Grantee Vendor Comments section"]
[]
[]
[null,"Privacy and Non-confidentiality Notice"]
[null,"The Foundation is required by the IRS to publish a list of its grants. We may also provide a general description of our grants and contracts on our web sites, in press releases, and in other marketing materials. Subject to the foundation’s Privacy Policy, the foundation may also share information you provide to us (either orally or in writing) with third parties, including external reviewers, key partners and co-funders. This document is subject to the foundation’s Terms of Use.",null,null,null,null,null,null,null,null,null,null,null,null,null,null,null,null,null,null,null,null,null,null,null,null,null,null,null,null,null,null,null,null,null,null,null,null,null,null,null,null,null,null,null,null,null,null,null,null,null,null,null,null,null,null,null,null,null,null,null,null,null,null,null,null,null,null,null,null,null,null,null,null,null,null,null,null,null,null,null,null,null,null,null,null,null,null,null,null,null,null,null,null,null,null,null,null,null,null,null,null,null,null,null,null,null,null,null,null,"Privacy  and Comments"]
[null,"Privacy Policy"]
[null,"Terms of Use"]

{"sheet":"NewRows","index":4,"n_rows":8,"n_cols":105,"rows_kept":8,"cut":false,"hidden":true,"merged":[[3,3,3,24],[3,28,3,49],[3,53,3,75],[4,2,4,18],[4,19,4,25],[4,27,4,43],[4,44,4,50],[4,52,4,69],[4,70,4,76],[1,2,1,25],[1,27,1,50],[1,52,1,76],[2,2,2,3],[2,4,2,8],[2,9,2,22],[2,23,2,25],[2,27,2,28],[2,29,2,33],[2,34,2,47],[2,48,2,50],[2,52,2,53],[2,54,2,58],[2,59,2,73],[2,74,2,76],[7,39,7,48],[7,49,7,58],[7,59,7,66],[7,67,7,88],[7,1,7,4],[7,5,7,8],[7,9,7,12],[7,13,7,28],[7,29,7,38]]}
[]
[]
[null,null,"¨",null,{"$f":"IF(D4=\"\", INDIRECT(\"E\" & ROW()-4), INDIRECT(\"E\" & ROW()-4)+1)","v":{"$error":"#REF!"}},null,null,null,null,null,null,null,null,null,null,null,null,null,null,null,null,null,null,"x",null,null,null,"¨",null,{"$f":"IF($E3<>INDIRECT(\"$E\"&ROW()-4),$E3&\".1\",IF($AC4=\"\",INDIRECT(\"$AD\"&ROW()-4),LEFT(INDIRECT(\"$E\"&ROW()))&\".\"&RIGHT(INDIRECT(\"$AD\"&ROW()-4),LEN(INDIRECT(\"$AD\"&ROW()-4))-FIND(\".\",INDIRECT(\"$AD\"&ROW()-4)))+1))","v":{"$error":"#REF!"}},null,null,null,null,null,null,null,null,null,null,null,null,null,null,null,null,null,null,"x",null,null,null,"¨",null,{"$f":"IF($AD3 <> INDIRECT(\"$AD\" & ROW() - 4), $AD3 & \".1\", LEFT(INDIRECT(\"$BC\" & ROW()-4), FIND(\".\",INDIRECT(\"$BC\" & ROW()-4),FIND(\".\",INDIRECT(\"$BC\" & ROW()-4))+1)) & RIGHT(INDIRECT(\"$BC\" & ROW()-4), LEN(INDIRECT(\"$BC\" & ROW()-4))-FIND(\".\",INDIRECT(\"$BC\" & ROW()-4),FIND(\".\",INDIRECT(\"$BC\" & ROW()-4))+1))+1)","v":{"$error":"#REF!"}},null,null,null,null,null,null,null,null,null,null,null,null,null,null,null,null,null,null,null,"x"]
[null,null,null,null,null,null,null,null,null,null,null,null,null,null,null,null,null,null,null,null,null,null,null,null,null,null,null,null,null,null,null,null,null,null,null,null,null,null,null,null,null,null,null,null,null,null,null,null,null,null,null,null,null,null,null,null,null,null,null,null,null,null,null,null,null,null,null,null,null,null,null,null,null,null,null,null,null,null,null,null,null,{"$f":"D4","v":0},{"$f":"AC4","v":0},{"$f":"BB4","v":0},"placeholder"]
[null,null,null,null,null,null,null,null,null,null,null,null,null,null,null,null,null,null,null,"Add Another",null,null,null,null,null,null,null,null,null,null,null,null,null,null,null,null,null,null,null,null,null,null,null,null,"Add Another",null,null,null,null,null,null,null,null,null,null,null,null,null,null,null,null,null,null,null,null,null,null,null,null,null,"Add Another"]
[]
[]
["x","-",null,null,null,"-",null,null,null,"-",null,null,null,null,null,null,null,null,null,null,null,null,null,null,null,null,null,null,null,null,null,null,null,null,null,null,null,null,null,null,null,null,null,null,null,null,null,null,null,null,null,null,null,null,null,null,null,null,null,"¨",null,null,null,null,null,null,null,null,null,null,null,null,null,null,null,null,null,null,null,null,null,null,null,null,null,null,null,null,null,null,null,null,null,null,null,null,null,null,null,null,{"$f":"N8","v":0},{"$f":"AD8","v":0},{"$f":"AN8","v":0},{"$f":"AX8","v":0},{"$f":"BP8","v":0}]

{"sheet":"Results Tracker - Template","index":5,"n_rows":38,"n_cols":111,"rows_kept":38,"cut":false,"hidden":true,"merged":[[0,80,0,88],[1,1,1,88],[6,1,6,77],[0,1,0,19],[0,21,0,39],[0,41,0,59],[0,61,0,79],[2,1,2,88],[3,1,3,88],[4,1,4,88],[5,1,5,23],[5,24,5,27],[7,2,7,13],[7,14,7,15],[7,17,7,76],[9,2,9,13],[9,14,9,15],[9,17,9,76],[18,95,18,97],[11,2,11,15],[11,17,11,39],[11,41,11,52],[11,54,11,76],[13,2,13,15],[13,17,13,39],[13,41,13,52],[13,54,13,76],[15,2,15,15],[16,1,16,77],[17,1,17,88],[18,1,18,88],[18,90,18,92],[19,1,19,88],[21,1,21,8],[21,10,21,23],[22,1,22,50],[22,51,22,54],[23,59,23,66],[23,67,23,88],[24,1,24,4],[24,5,24,8],[24,9,24,12],[24,13,24,28],[24,29,24,38],[24,39,24,48],[24,49,24,58],[24,59,24,66],[23,1,23,12],[23,13,23,28],[23,29,23,38],[23,39,23,48],[23,49,23,58],[35,1,35,77],[36,1,36,6],[37,1,37,6],[24,67,24,88],[26,1,26,8],[26,10,26,23],[26,25,26,32],[31,2,31,38],[31,40,31,82]]}
[null,"Concept",null,null,null,null,null,null,null,null,null,null,null,null,null,null,null,null,null,null,null,"Pre-Proposal",null,null,null,null,null,null,null,null,null,null,null,null,null,null,null,null,null,null,null,"Investment Development",null,null,null,null,null,null,null,null,null,null,null,null,null,null,null,null,null,null,null,"Management & Close"]
[]
[null,"Results Tracker"]
[]
[null,"Use this form collaboratively with your foundation program officer during the Investment Development phase to agree upon targets and on the approach to measuring and tracking results over the life of the project. You will continue to use the Results Tracker during the Management & Close phase to document actuals and variance against targets as the project progresses. See the ‘Before you Begin’ tab for  links to additional guidance on using the tool."]
[]
[]
[null,null,"Investment Title",null,null,null,null,null,null,null,null,null,null,null,null,null,null,{"$f":"IF('Results Framework'!$R$10:$AN$10=\"\",\"\",'Results Framework'!$R$10:$AN$10)","v":"Southern focused coalition in support of HIV combined prevention and differentiated care"},null,null,null,null,null,null,null,null,null,null,null,null,null,null,null,null,null,null,null,null,null,null,null,null,null,null,null,null,null,null,null,null,null,null,null,null,null,null,null,null,null,null,null,null,null,null,null,null,null,null,null,null,null,null,null,null,null,null,null,null,null,null,null,null,null,null,null,null,null,null,null,null,null,null,null,null,null,null,null,null,null,null,null,null,null,null,null,{"$f":"R8","v":"Southern focused coalition in support of HIV combined prevention and differentiated care"}]
[]
[null,null,"Organization Legal Name",null,null,null,null,null,null,null,null,null,null,null,null,null,null,{"$f":"IF('Results Framework'!$R$12:$AN$12=\"\",\"\",'Results Framework'!$R$12:$AN$12)","v":"AVAC"},null,null,null,null,null,null,null,null,null,null,null,null,null,null,null,null,null,null,null,null,null,null,null,null,null,null,null,null,null,null,null,null,null,null,null,null,null,null,null,null,null,null,null,null,null,null,null,null,null,null,null,null,null,null,null,null,null,null,null,null,null,null,null,null,null,null,null,null,null,null,null,null,null,null,null,null,null,null,null,null,null,null,null,null,null,null,null,{"$f":"R10","v":"AVAC"}]
[]
[null,null,"Primary Contact",null,null,null,null,null,null,null,null,null,null,null,null,null,null,{"$f":"IF('Results Framework'!$R$14:$AN$14=\"\",\"\",'Results Framework'!$R$14:$AN$14)","v":"Emily Bass"},null,null,null,null,null,null,null,null,null,null,null,null,null,null,null,null,null,null,null,null,null,null,null,"Program Officer",null,null,null,null,null,null,null,null,null,null,null,null,{"$f":"IF('Results Framework'!$BC$14:$BY$14=\"\",\"\",'Results Framework'!$BC$14:$BY$14)","v":"Lorna Tumwebaze"},null,null,null,null,null,null,null,null,null,null,null,null,null,null,null,null,null,null,null,null,null,null,null,null,null,null,null,null,null,null,null,null,null,null,null,null,null,null,null,null,null,null,null,null,null,null,null,null,null,null,{"$f":"R12","v":"Emily Bass"}]
[]
[null,null,"Date Submitted",null,null,null,null,null,null,null,null,null,null,null,null,null,null,{"$f":"IF('Results Framework'!$R$16:$AN$16=\"\",\"\",'Results Framework'!$R$16:$AN$16)","v":"2017-08-28"},null,null,null,null,null,null,null,null,null,null,null,null,null,null,null,null,null,null,null,null,null,null,null,"Opportunity ID",null,null,null,null,null,null,null,null,null,null,null,null,{"$f":"IF('Results Framework'!$BC$16:$BY$16=\"\",\"\",'Results Framework'!$BC$16:$BY$16)","v":"OPP1174438"},null,null,null,null,null,null,null,null,null,null,null,null,null,null,null,null,null,null,null,null,null,null,null,null,null,null,null,null,null,null,null,null,null,null,null,null,null,null,null,null,null,null,null,null,null,null,null,null,null,null,null,{"$f":"R14","v":42975},{"$f":"BC14","v":"OPP1174438"}]
[]
[]
[]
[null,null,null,null,null,null,null,null,null,null,null,null,null,null,null,null,null,null,null,null,null,null,null,null,null,null,null,null,null,null,null,null,null,null,null,null,null,null,null,null,null,null,null,null,null,null,null,null,null,null,null,null,null,null,null,null,null,null,null,null,null,null,null,null,null,null,null,null,null,null,null,null,null,null,null,null,null,null,null,null,null,null,null,null,null,null,null,null,null,null,null,null,"Delete Period",null,null,"Add Another Period"]
[null,null,null,null,null,null,null,null,null,null,null,null,null,null,null,null,null,null,null,null,null,null,null,null,null,null,null,null,null,null,null,null,null,null,null,null,null,null,null,null,null,null,null,null,null,null,null,null,null,null,null,null,null,null,null,null,null,null,null,null,null,null,null,null,null,null,null,null,null,null,null,null,null,null,null,null,null,null,null,null,null,null,null,null,null,null,null,null,null,null,{"$f":"\"Reporting Period  \" & IFERROR(RIGHT(INDIRECT(ADDRESS(ROW(), COLUMN()-4)), LEN(INDIRECT(ADDRESS(ROW(), COLUMN()-4))) - FIND(\"  \", INDIRECT(ADDRESS(ROW(), COLUMN()-4))))+1, \"1\")","v":"Reporting Period  1"},null,null,null,null,"Cumulative"]
[null,null,null,null,null,null,null,null,null,null,null,null,null,null,null,null,null,null,null,null,null,null,null,null,null,null,null,null,null,null,null,null,null,null,null,null,null,null,null,null,null,null,null,null,null,null,null,null,null,null,null,null,null,null,null,null,null,null,null,null,null,null,null,null,null,null,null,null,null,null,null,null,null,null,null,null,null,null,null,null,null,null,null,null,null,null,null,null,null,null,"Reporting Start Date","DD Month YYYY",null,null,null,"Reporting Start Date","DD Month YYYY"]
[null,null,null,null,null,null,null,null,null,null,null,null,null,null,null,null,null,null,null,null,null,null,null,null,null,null,null,null,null,null,null,null,null,null,null,null,null,null,null,null,null,null,null,null,null,null,null,null,null,null,null,null,null,null,null,null,null,null,null,null,null,null,null,null,null,null,null,null,null,null,null,null,null,null,null,null,null,null,null,null,null,null,null,null,null,null,null,null,null,null,"Reporting End Date","DD Month YYYY",null,null,null,"Reporting End Date","DD Month YYYY"]
[null,null,null,null,null,null,null,null,null,null,null,null,null,null,null,null,null,null,null,null,null,null,null,null,null,null,null,null,null,null,null,null,null,null,null,null,null,null,null,null,null,null,null,null,null,null,null,null,null,null,null,null,null,null,null,null,null,null,null,null,null,null,null,null,null,null,null,null,null,null,null,null,null,null,null,null,null,null,null,null,null,null,null,null,null,null,null,null,null,null,"Duration","XX Months",null,null,null,"Duration","XX Months"]
[null,"For additional tips, click on the header of each column.  Additional guidance for the tool can be found",null,null,null,null,null,null,null,null,null,null,null,null,null,null,null,null,null,null,null,null,null,null,null,null,null,null,null,null,null,null,null,null,null,null,null,null,null,null,null,null,null,null,null,null,null,null,null,null,null,"here"]
[null,"ID",null,null,null,null,null,null,null,null,null,null,null,"Outcome/Output",null,null,null,null,null,null,null,null,null,null,null,null,null,null,null,"Indicator(s)",null,null,null,null,null,null,null,null,null,"Data Sources \n(If Applicable)",null,null,null,null,null,null,null,null,null,"Baseline \n(If Applicable)",null,null,null,null,null,null,null,null,null,"Payment \nContingency",null,null,null,null,null,null,null,"Comments",null,null,null,null,null,null,null,null,null,null,null,null,null,null,null,null,null,null,null,null,null,null,"Targets/Milestones","Actual","Variance",null,null,"Targets/Milestones","Actual","Variance"]
[null,"-",null,null,null,"-",null,null,null,"-",null,null,null,null,null,null,null,null,null,null,null,null,null,null,null,null,null,null,null,null,null,null,null,null,null,null,null,null,null,null,null,null,null,null,null,null,null,null,null,null,null,null,null,null,null,null,null,null,null,"¨",null,null,null,null,null,null,null,null,null,null,null,null,null,null,null,null,null,null,null,null,null,null,null,null,null,null,null,null,null,null,null,null,null,null,null,null,null,null,null,null,{"$f":"N25","v":0},{"$f":"AD25","v":0},{"$f":"AN25","v":0},{"$f":"AX25","v":0},{"$f":"BP25","v":0}]
[]
[]
[]
[]
[null,null,null,"Grantee / Vendor Comments"]
[]
[null,null,"Use this section to provide comments and/or additional context regarding the outcomes/outputs above. Be sure to reference the outcome(s)/output(s) referred to in the comment.",null,null,null,null,null,null,null,null,null,null,null,null,null,null,null,null,null,null,null,null,null,null,null,null,null,null,null,null,null,null,null,null,null,null,null,null,null,null,null,null,null,null,null,null,null,null,null,null,null,null,null,null,null,null,null,null,null,null,null,null,null,null,null,null,null,null,null,null,null,null,null,null,null,null,null,null,null,null,null,null,null,null,null,null,null,null,null,null,null,null,null,null,null,null,null,null,null,null,null,null,null,null,null,null,null,{"$f":"AO32","v":0},"This is the placeholder for wrapping the Grantee Vendor Comments section"]
[]
[]
[null,"Privacy and Non-confidentiality Notice"]
[null,"The Foundation is required by the IRS to publish a list of its grants. We may also provide a general description of our grants and contracts on our web sites, in press releases, and in other marketing materials. Subject to the foundation’s Privacy Policy, the foundation may also share information you provide to us (either orally or in writing) with third parties, including external reviewers, key partners and co-funders. This document is subject to the foundation’s Terms of Use.",null,null,null,null,null,null,null,null,null,null,null,null,null,null,null,null,null,null,null,null,null,null,null,null,null,null,null,null,null,null,null,null,null,null,null,null,null,null,null,null,null,null,null,null,null,null,null,null,null,null,null,null,null,null,null,null,null,null,null,null,null,null,null,null,null,null,null,null,null,null,null,null,null,null,null,null,null,null,null,null,null,null,null,null,null,null,null,null,null,null,null,null,null,null,null,null,null,null,null,null,null,null,null,null,null,null,null,null,"Privacy  and Comments"]
[null,"Privacy Policy"]
[null,"Terms of Use"]

{"sheet":"Troubleshooting","index":6,"n_rows":0,"n_cols":0,"rows_kept":0,"cut":false,"hidden":false,"merged":[]}

{"sheet":"NEW TAB","index":7,"n_rows":0,"n_cols":0,"rows_kept":0,"cut":false,"hidden":true,"merged":[]}